{"text_format":"1","workbook":"xlsx","n_sheets":24,"sheets":["محضر التربية والتسيير","معطيات","الايرادات","النفقات","الطباعة","0","1","2","3","4","5","6","7","8","9","10","11","12","13","بطاقة االمراقبة ","التقرير","توضيح","الخلاصة","فائض الايرادات"],"not_rendered":{"charts":0,"images":1,"macros":1,"external_links":1,"defined_names":80,"comments":0,"pivot_tables":0},"unopened":[],"bounds":{"document_bytes":16777216,"sheet_cells":100000,"rows_first":2000,"rows_last":500,"rows_between":2000,"halvings":0,"cell_chars":16384,"cell_head_chars":4096},"cells_cut":0,"cells_raw":0,"read":"whole","date_system":"1900"}

{"sheet":"محضر التربية والتسيير","index":0,"n_rows":41,"n_cols":9,"rows_kept":41,"cut":false,"hidden":false,"merged":[[22,1,22,2],[22,3,22,6],[22,8,22,10],[30,1,30,10],[31,1,31,10],[23,1,23,2],[23,3,23,6],[23,8,23,10],[27,1,27,10],[28,1,28,5],[29,1,29,10],[20,1,20,2],[20,3,20,6],[20,8,20,10],[21,1,21,2],[21,3,21,6],[21,8,21,10],[18,1,18,2],[18,3,18,6],[18,8,18,10],[19,1,19,2],[19,3,19,6],[19,8,19,10],[16,1,16,2],[16,3,16,6],[16,8,16,10],[17,1,17,2],[17,3,17,6],[17,8,17,10],[14,1,14,2],[14,3,14,6],[14,8,14,10],[15,1,15,2],[15,3,15,6],[15,8,15,10],[12,1,12,2],[12,3,12,6],[12,8,12,10],[13,1,13,2],[13,3,13,6],[13,8,13,10],[7,1,7,4],[7,5,7,6],[7,7,7,10],[8,1,8,10],[11,1,11,2],[11,3,11,6],[11,8,11,10],[0,0,0,10],[1,0,1,10],[4,0,4,10],[6,2,6,3],[6,8,6,9]]}
["الجمهورية الجزائرية الديمقراطية الشعبية"]
["وزارة التربية الوطنية"]
[null,"مديرية التربية لولايةالشلف "]
[null,"متوسطة شافع العربي الكريمية "]
["مستخرج  محضر مجلس التوجيه و التسيير"]
[]
[null,"وفي يوم","2018-05-26",null,null,"عام",2018,"وعلى الساعة :",{"$f":"'[1]معلومات عن المتعهدين'!H22","v":11}]
[null," اجتمع أعضاء مجلس التوجيه والتسيير برئاسة السيد:",null,null,null,null,null,"باعتباره مدير أمر بالصرف  ، لمناقشة ميزانية 2018"]
[]
[]
[null,"الأعضاء الحاضرون:"]
[null,"اللقب و الاســـــــم",null,"الوظيفة",null,null,null,"الحضور والغياب","ملاحظات"]
[null,null,null,"مدير(امر بالصرف)"]
[null,null,null,"ناظر"]
[null,null,null,"مقتصد رئيسي (مكلف.بالتسيير)"]
[null,null,null,"مستشار التربية"]
[null,null,null,"استاد"]
[null,null,null,"اداري"]
[null,null,null,"تلميدة"]
[]
[]
[]
[]
[]
[]
[]
[null,"    جــــــدول الأعمــــــــال : "]
["-","مناقشة ميزانية 2018"]
["-"]
[null,"المــــــداولا ت"]
[null,"                   بعد إلقاء الكلمة الترحيبية من طرف السيد مدير المؤسسة   و تذكيره بموضوع الجلسة "]
[null,"تطرق المسير المالي الى شرح بنود الميزانية الجديدة مع توضيح الإختلافات مقارنة مع الميزانية القديمة "]
[null,"وشرح عملية توزيع المبالغ المالية حسب ضرورة تسيير المؤسسة واعطاء الأولوية لتمدرس التلاميد وكدا تحسين ضروف "]
[null,"تمدرسهم وتم فتح مجال المناقشة بين اعضاء المجلس  وفي الأخير تمت المصادقة على ميزانية 2018"]
[null,null,null,"ورفعت الجلسة في نفس التاريخ"]
[]
[]
[]
[]
[]
[null,null,null,null,null,null,null,"المدير"]

{"sheet":"معطيات","index":1,"n_rows":514,"n_cols":22,"rows_kept":514,"cut":false,"hidden":false,"merged":[[8,3,8,5],[8,7,8,9],[10,7,10,9],[10,10,10,11],[119,17,119,20],[22,8,22,9],[28,2,28,5],[28,7,28,11],[24,8,24,11],[20,2,20,11],[10,3,10,5],[8,10,8,11],[109,17,109,18],[109,19,109,20],[110,17,110,18],[110,19,110,20],[36,2,36,5],[36,7,36,11],[30,2,30,11],[46,2,46,11],[50,2,50,5],[52,2,52,5],[54,2,54,5],[111,17,111,18],[2,3,2,5],[4,3,4,5],[6,3,6,5],[4,7,4,9],[4,10,4,11],[2,7,2,9],[2,10,2,11],[6,7,6,9],[6,10,6,11],[31,15,32,15],[32,2,32,5],[32,7,32,11],[75,1,75,12],[77,1,77,12],[71,1,71,12],[73,1,73,12],[59,1,59,12],[61,1,61,12],[63,1,63,12],[65,1,65,12],[67,1,67,12],[69,1,69,12],[38,2,38,5],[38,7,38,11],[34,2,34,5],[34,7,34,11],[40,2,40,5],[40,7,40,11],[59,14,59,15],[57,13,57,14],[57,1,57,12],[44,2,44,5],[44,7,44,11],[133,21,134,21],[121,17,121,18],[121,19,121,20],[136,21,137,21],[129,21,130,21],[131,21,132,21],[125,21,126,21],[127,21,128,21],[125,17,125,18],[125,19,125,20],[134,17,134,20],[130,17,130,20],[131,17,131,20],[132,17,132,18],[132,19,132,20],[133,17,133,18],[133,19,133,20],[126,17,126,20],[129,17,129,18],[129,19,129,20],[127,17,127,20],[128,17,128,18],[128,19,128,20],[123,21,124,21],[139,17,139,18],[139,19,139,20],[135,17,135,20],[136,19,136,20],[136,17,136,18],[137,17,137,18],[137,19,137,20],[138,17,138,18],[138,19,138,20],[123,17,123,20],[124,17,124,18],[124,19,124,20],[48,2,48,5],[48,9,48,11],[50,9,50,11],[54,9,54,11],[52,9,52,11],[121,21,122,21],[111,19,111,20],[118,17,118,20],[112,17,112,18],[112,19,112,20],[119,21,120,21],[114,17,114,20],[115,17,115,18],[115,19,115,20],[120,17,120,18],[120,19,120,20],[122,17,122,20]]}
[]
[]
[null,null,"مديرية التربية :","الشلف ",null,null,null,"رقم الهاتف :",null,null,"027708500",null,null,null,null,"الايرادات"]
[]
[null,null,"إسم المؤسســــة :","متوسطة   شا فع العربي الكريمية ",null,null,null,"الدائـــــــــــرة:",null,null,"الكريمية",null,null,null,null,"النفقات"]
[]
[null,null,"العنــــــــــوان :","شارع الحرية الكرمية ",null,null,null,"البلديـــــــــة:",null,null,"الكريمية ",null,null,null,null,"للطباعة"]
[]
[null,null,"الرقم الميكانوغرافي:","02413",null,null,null,"السنة المالية :",null,null,2018,null,null,null,null,"التقرير"]
[]
[null,null,"رقم حساب الخزينة:","556/59",null,null,null,"تاريخ الإنجاز:",null,null,"2018-02-26"]
[]
[]
[]
["-",null,"القـــــــJـــــانون رقم :","11-17","المؤرخ في :","2017-12-27",null,"المتضمن قانون المالية لسنة :",null,null,null,{"$f":"K9","v":2018}]
[]
["-",null,"المرسوم التنفيذي رقم :","18-22","المؤرخ في :","2018-01-22",null,"المتضمن توزيع الإعتمادات المخصصة للسيدة  وزيرة التربية الوطنية"]
[]
[]
[]
[null,null,"تعداد التلاميذ في البطاقة الوصفية ",null,null,null,null,null,null,null,null,null,1,null,null,"الخلاصة"]
[]
[null,null,"داخلي:",0,"نصف داخلي:",693,null,"خارجي :",10,null,"رياضة ودراسة :",0,null,null,null,"توضيح"]
[]
[null,null,"منهم ممنوح :",2,"منهم ممنوح:",693,null,"المجموع العام :",{"$f":"D23+F23+I23","v":703},null,null,null,null,null,null,"المتابعة",null,null,null,{"$f":"T31*T33","v":0}]
[]
[]
[]
[null,null,"سعر الوجبة للتلميذ الداخلي",null,null,null,null,{"$f":"#REF!*2","v":{"$error":"#REF!"}},null,null,null,null,null,{"$f":"D23*H29","v":{"$error":"#REF!"}}]
[]
[null,null,"معطيات متغـــــــــــــــــيرة",null,null,null,null,null,null,null,null,null,null,null,null,"ميزانية   معدلـة"]
[]
[null,null,"مبلغ المنحة للتلميذ الواحد نصف داخلي",null,null,null,null,648]
[]
[null,null,"مساهمة الدولة للتلميذ الواحد نصف داخلي",null,null,null,null,1152]
[]
[null,null,"مساهمة العائلات  للتلميذ الواحد  نصف داخلي",null,null,null,null,1800]
[]
[null,null,"مبلغ إعانة الدولة للتغذية للتلميذ الواحد نصف داخلي",null,null,null,null,10200,null,null,null,null,null,{"$f":"H41*(D23+F23+I23)","v":7030}]
[]
[null,null,"مبلغ حقوق التسجيل - للتلميذ الواحد -",null,null,null,null,10]
[]
[]
[]
[null,null,"سعر الوجبة للتلميذ الداخلي",null,null,null,null,{"$f":"#REF!*2","v":{"$error":"#REF!"}},null,null,null,null,null,{"$f":"D39*H45","v":{"$error":"#REF!"}}]
[]
[null,null,"المبالغ المسموح باستعمالها  في الاطعام  وفق الحقوق المثبتة والتحصيلات الفعلية"]
[]
[null,null,"إعانة التسيير للتغذية",null,null,null,null,{"$f":"J49/H39","v":0},null,{"$f":"IF(S53>الايرادات!J11,الايرادات!J11,معطيات!S53)","v":0}]
[]
[null,null,"المنح الوطنية",null,null,null,null,{"$f":"J51/H33","v":704},null,456192]
[]
[null,null,"مساهمة الدولة  للتلاميذ الممنوحين",null,null,null,null,{"$f":"J53/H35","v":693},null,798336]
[]
[null,null,"مساهمة العائلات",null,null,null,null,{"$f":"J55/H37","v":0},null,0]
[]
[]
[null,"تعدل الميزانية في الحالات التالية "]
[]
[-1,"حدوث تغير في تعداد النظامين الداخلي ونصف الداخلي بالزيادة أو بالنقصان  في الفصل الرابع من السنة المالية"]
[]
[-2,"الإستفادة من إعانات إضافية أو إستثنائية"]
[]
[-3,"ايرادات واردة من الجماعات المحلية والهيئات والمؤسسات العمومية"]
[]
[-4,"بيع الكتاب المدرسي والوثائق الشبه مدرسية "]
[null,null,null,null,null,null,null,null,null,null,null,null,null,null,null,null,null,null,null,"مساهمة الدولة","مساهمة العائلات"]
[-5,"ايرادات خاصة بمختلف العمليات التكوينية"]
[null,null,null,null,null,null,null,null,null,null,null,null,null,null,null,null,null,null,null,"مساهمة الدولة","مساهمة العائلات"]
[-6,"إدراج فائض الايرادات"]
[null,null,null,null,null,null,null,null,null,null,null,null,null,null,null,null,null,null,null,"مساهمة الدولة","مساهمة العائلات"]
[null,"النقل أو التحويل من بـــــــــــــــاب إلى بـــــــــــــــاب "]
[null,null,null,null,null,null,null,null,null,null,null,null,null,null,null,null,null,null,null,"مساهمة الدولة","مساهمة العائلات"]
[null,"يقتضي الموافقة المسبقة من مديرية التربية  بنفس الإجراءات المتبعة أثناء الإعداد والمصادقة على الميزانية الأولية "]
[null,null,null,null,null,null,null,null,null,null,null,null,null,null,null,null,null,null,null,"مساهمة الدولة","مساهمة العائلات"]
[null,"النقل أو التحويل من مـــــــــــــادة إلى مـــــــــــــادة "]
[null,null,null,null,null,null,null,null,null,null,null,null,null,null,null,null,null,null,null,"مساهمة الدولة","مساهمة العائلات"]
[null,"يتم باقتراح من الآمر بالصرف والموافقة والتنفيذ من طرف المقتصد أو المكلف بمهامه بصفته عون محاسب معتمد"]
[null,null,null,null,null,null,null,null,null,null,null,null,null,null,null,null,null,null,null,"مساهمة الدولة","مساهمة العائلات"]
[]
[]
[]
[]
[]
[]
[]
[]
[]
[]
[]
[]
[]
[]
[]
[]
[]
[]
[]
[]
[]
[]
[]
[]
[]
[]
[]
[]
[]
[]
[]
[]
[]
[]
[]
[null,null,null,null,null,null,null,null,null,null,null,null,null,null,null,null,null,"حقوق التسجيل"]
[null,null,null,null,null,null,null,null,null,null,null,null,null,null,null,null,null,"مجموع التلاميذ",null,{"$f":"I25*H41","v":7030}]
[]
[]
[null,null,null,null,null,null,null,null,null,null,null,null,null,null,null,null,null,"الميزانية الأولية",null,null,null,"الميزانية المعدلة"]
[null,null,null,null,null,null,null,null,null,null,null,null,null,null,null,null,null,"المنحــــــــــــــــة",null,null,null,"المنحــــــــــــــــة"]
[null,null,null,null,null,null,null,null,null,null,null,null,null,null,null,null,null,"داخلي",null,"نصف داخلي"]
[null,null,null,null,null,null,null,null,null,null,null,null,null,null,null,null,null,{"$f":"D25*H33*2","v":2592},null,{"$f":"F25*H33","v":449064},null,{"$f":"J51","v":456192}]
[null,null,null,null,null,null,null,null,null,null,null,null,null,null,null,null,null,{"$f":"T122+R122","v":451656}]
[null,null,null,null,null,null,null,null,null,null,null,null,null,null,null,null,null,"مساهمة الدولة للتلايذ الممنوحين",null,null,null,"مساهمة الدولة للتلايذ الممنوحين"]
[null,null,null,null,null,null,null,null,null,null,null,null,null,null,null,null,null,"داخلي",null,"نصف داخلي",null,"داخلي"]
[null,null,null,null,null,null,null,null,null,null,null,null,null,null,null,null,null,{"$f":"D25*H35*2","v":4608},null,{"$f":"F25*H35","v":798336},null,{"$f":"J53","v":798336}]
[null,null,null,null,null,null,null,null,null,null,null,null,null,null,null,null,null,{"$f":"T126+R126","v":802944}]
[null,null,null,null,null,null,null,null,null,null,null,null,null,null,null,null,null,"اعانة الدولة للتغذية",null,null,null,"اعانة الدولة للتغذية"]
[null,null,null,null,null,null,null,null,null,null,null,null,null,null,null,null,null,"داخلي",null,"نصف داخلي",null,"داخلي"]
[null,null,null,null,null,null,null,null,null,null,null,null,null,null,null,null,null,{"$f":"D23*H39*2","v":0},null,{"$f":"F23*H39","v":7068600},null,{"$f":"J49","v":0}]
[null,null,null,null,null,null,null,null,null,null,null,null,null,null,null,null,null,{"$f":"T130+R130","v":7068600}]
[null,null,null,null,null,null,null,null,null,null,null,null,null,null,null,null,null,"مساهمة العائلات",null,null,null,"مساهمة العائلات"]
[null,null,null,null,null,null,null,null,null,null,null,null,null,null,null,null,null,"داخلي",null,"نصف داخلي",null,"داخلي"]
[null,null,null,null,null,null,null,null,null,null,null,null,null,null,null,null,null,{"$f":"(D23-D25)*H37*2","v":-7200},null,{"$f":"(F23-F25)*H37","v":0},null,{"$f":"J55","v":0}]
[null,null,null,null,null,null,null,null,null,null,null,null,null,null,null,null,null,{"$f":"T134+R134","v":-7200}]
[null,null,null,null,null,null,null,null,null,null,null,null,null,null,null,null,null,"القرض المفتوح",null,null,null,"القرض المفتوح"]
[null,null,null,null,null,null,null,null,null,null,null,null,null,null,null,null,null,"داخلي:",null,{"$f":"R134+R130+R126+R122","v":0},null,{"$f":"V134+V130+V126+V122","v":1254528}]
[null,null,null,null,null,null,null,null,null,null,null,null,null,null,null,null,null,"نصف داخلي:",null,{"$f":"T134+T130+T126+T122","v":8316000}]
[null,null,null,null,null,null,null,null,null,null,null,null,null,null,null,null,null,"الطاولة المشتركة",null,{"$f":"الايرادات!J83+الايرادات!J84","v":68800},null,{"$f":"V137/(H39+H37)","v":104.544}]
[null,null,null,null,null,null,null,null,null,null,null,null,null,null,null,null,null,"المجموع",null,{"$f":"SUM(T137:U139)","v":8384800}]
[]
[]
[]
[]
[]
[]
[]
[]
[]
[]
[]
[]
[]
[]
[]
[]
[]
[]
[]
[]
[]
[]
[]
[]
[]
[]
[]
[]
[]
[]
[]
[]
[]
[]
[]
[]
[]
[]
[]
[]
[]
[]
[]
[]
[]
[]
[]
[]
[]
[]
[]
[]
[]
[]
[]
[]
[]
[]
[]
[]
[]
[]
[]
[]
[]
[]
[]
[]
[]
[]
[]
[]
[]
[]
[]
[]
[]
[]
[]
[]
[]
[]
[]
[]
[]
[]
[]
[]
[]
[]
[]
[]
[]
[]
[]
[]
[]
[]
[]
[]
[]
[]
[]
[]
[]
[]
[]
[]
[]
[]
[]
[]
[]
[]
[]
[]
[]
[]
[]
[]
[]
[]
[]
[]
[]
[]
[]
[]
[]
[]
[]
[]
[]
[]
[]
[]
[]
[]
[]
[]
[]
[]
[]
[]
[]
[]
[]
[]
[]
[]
[]
[]
[]
[]
[]
[]
[]
[]
[]
[]
[]
[]
[]
[]
[]
[]
[]
[]
[]
[]
[]
[]
[]
[]
[]
[]
[]
[]
[]
[]
[]
[]
[]
[]
[]
[]
[]
[]
[]
[]
[]
[]
[]
[]
[]
[]
[]
[]
[]
[]
[]
[]
[]
[]
[]
[]
[]
[]
[]
[]
[]
[]
[]
[]
[]
[]
[]
[]
[]
[]
[]
[]
[]
[]
[]
[]
[]
[]
[]
[]
[]
[]
[]
[]
[]
[]
[]
[]
[]
[]
[]
[]
[]
[]
[]
[]
[]
[]
[]
[]
[]
[]
[]
[]
[]
[]
[]
[]
[]
[]
[]
[]
[]
[]
[]
[]
[]
[]
[]
[]
[]
[]
[]
[]
[]
[]
[]
[]
[]
[]
[]
[]
[]
[]
[]
[]
[]
[]
[]
[]
[]
[]
[]
[]
[]
[]
[]
[]
[]
[]
[]
[]
[]
[]
[]
[]
[]
[]
[]
[]
[]
[]
[]
[]
[]
[]
[]
[]
[]
[]
[]
[]
[]
[]
[]
[]
[]
[]
[]
[]
[]
[]
[]
[]
[]
[]
[]
[]
[]
[]
[]
[]
[]
[]
[]
[]
[]
[]
[]
[]
[]
[]
[]
[]
[]
[]
[]
[]
[]
[]
[]
[]
[]
[]
[]
[]
[]
[]
[]
[]
[]
[]
[]
[null,null,null,null,null,null,null,null,null,null,null,null,null,null,null,{"$f":"H37+H39","v":12000}]

{"sheet":"الايرادات","index":2,"n_rows":119,"n_cols":15,"rows_kept":119,"cut":false,"hidden":false,"merged":[[117,2,117,10],[7,4,7,8],[29,2,29,10],[55,2,55,10],[62,4,62,8],[43,4,43,8],[37,4,37,8],[22,4,22,8],[86,4,86,8],[98,4,98,8],[104,4,104,8],[13,4,13,7],[46,4,46,7],[47,4,47,7],[48,4,48,7],[69,4,69,7],[2,2,3,10],[49,4,49,7],[34,4,34,7],[40,4,40,7],[5,4,5,7],[17,4,17,7],[18,4,18,7],[19,4,19,7],[14,4,14,7],[16,4,16,7],[26,4,26,7],[27,4,27,7],[25,4,25,7],[10,4,10,7],[11,4,11,7],[12,4,12,7],[31,4,31,7],[32,4,32,7],[33,4,33,7],[56,4,56,7],[57,4,57,7],[59,4,59,7],[50,4,50,7],[51,4,51,7],[52,4,52,7],[53,4,53,7],[54,4,54,7],[101,4,101,7],[107,4,107,7],[114,4,114,7],[118,2,118,10],[15,4,15,7],[65,4,65,7],[66,4,66,7],[67,4,67,7],[68,4,68,7],[95,4,95,7],[75,4,75,7],[89,4,89,7],[81,4,81,7],[82,4,82,7],[83,4,83,7],[58,4,58,7]]}
[null,null,null,null,null,"المعطيات","النفقات","للطباعة"]
[]
[null,null,"العنوان الأول : الإيــــــــــــــــــــرادات"]
[]
[]
[null,null,"الباب",null,"العنــــــــــــــــــــــــــــــاوين",null,null,null,null,"المبلغ"]
[]
[null,null,1,null,"إعانات التسيير الممنوحة من طرف الدولة",null,null,null,null,{"$f":"SUM(J11:J20)","v":9456192},null,null,null,null,{"$f":"J8","v":9456192}]
[]
[]
[null,null,"-",null,"إعانة التسيير للتغذية ",null,null,null,{"$f":"J11+J12+J13+J16+J17+J18+J19","v":9000000},{"$f":"معطيات!R131","v":7068600}]
[null,null,"-",null,"إعانة التسيير للمصالح المشتركة",null,null,null,null,893454]
[null,null,"-",null,"إعانات التسيير الإضافية المختلفة",null,null,null,null,49210]
[null,null,"-",null,"إعانات تسيير أقسام رياضة ودراسة",null,null,null,null,0]
[null,null,"-",null,"المنح (منح النظامين الداخلي ونصف الداخلي  )",null,null,null,null,{"$f":"معطيات!J51","v":456192}]
[null,null,"-",null,"منح التجهيز",null,null,null,null,30000]
[null,null,"-",null,"دعم الدولة للتلاميذ الممنوحين",null,null,null,null,{"$f":"معطيات!J53","v":798336}]
[null,null,"-",null,"إعانات تسيير وحدة الكشف والمتابعة ",null,null,null,null,148000]
[null,null,"-",null,"إعانات النشاط الثقافي والرياضي",null,null,null,null,12400]
[null,null,"-",null,"إعانات دعم المكتبات المدرسية "]
[]
[]
[null,null,2,null,"الإعانات الممنوحة من الجماعات المحلية والمؤسسات والهيئات العمومية",null,null,null,null,{"$f":"SUM(J26:J35)","v":0},null,null,null,null,{"$f":"J23","v":0}]
[]
[]
[null,null,"-",null,"إعانات الإصلاحات الكبرى",null,null,null,null,0]
[null,null,"-",null,"إعانات المؤسسات والهيئات العمومية"]
[null,null,"-",null,"إعانات تنظيم مراكز التجميع والتصحيح للامتحانات المدرسية السنوية"]
[]
[null,null,"إعانات إخرى على عاتق الولاية "]
[]
[null,null,"-"]
[null,null,"-"]
[null,null,"-"]
[null,null,"-"]
[]
[]
[null,null,3,null,"الهبات والوصايا",null,null,null,null,{"$f":"SUM(J41:J41)","v":0},null,null,null,null,{"$f":"J38","v":0}]
[]
[]
[null,null,"-",null,"الهبات والوصايا التي تحصلت عليها المؤسسة بعد قبولها وفق التنظيم والتشريع المعمول به"]
[]
[]
[null,null,4,null,"إيرادات مرتبطة بنشاط المؤسسة",null,null,null,null,{"$f":"SUM(J47:J60)","v":46933},null,null,null,null,{"$f":"J44","v":46933}]
[]
[]
[null,null,"-",null,"عائدات الايجار",null,null,null,null,42000]
[null,null,"-",null,"ايرادات الأعباء الملحقة (كهرباء - غاز - ماء )",null,null,null,null,0]
[null,null,"-",null,"مستحقات المبيت",null,null,null,null,0]
[null,null,"-",null,"ايرادات بيع بقايا الخبز والشحوم والخردوات",null,null,null,null,3000]
[null,null,"-",null,"الإتلافات",null,null,null,null,1933]
[null,null,"-",null,"الايرادات الناتجة عن عملية الإسقاط",null,null,null,null,0]
[null,null,"-",null,"ايرادات بيع أشياء مصنوعة ومنتوج الحدائق",null,null,null,null,0]
[null,null,"-",null,"ايرادات بيع الكتاب المدرسي",null,null,null,null,0]
[null,null,"-",null,"ايرادات شبه المدرسية (الدفتر الصحي ، دفتر المراسلة ، أوراق الامتحانات )",null,null,null,null,0]
[null,null,"كل ايراد آخر مرتبط بالنشاط العادي للمؤسسة "]
[null,null,"-"]
[null,null,"-"]
[null,null,"-"]
[null,null,"-"]
[]
[]
[null,null,5,null,"إيرادات مختلفة",null,null,null,null,{"$f":"SUM(J66:J70)","v":0},null,null,null,null,{"$f":"J63","v":0}]
[]
[]
[null,null,"-",null,"تحصيل الدفع غير المستحق"]
[null,null,"-",null,"تعويضات التأمينات وتعويضات أخرى"]
[null,null,"-",null,"الباقي للتحصيل للسنوات السابقة",null,null,null,null,0]
[null,null,"-",null,"تصفية الحسابات خارج الميزانية"]
[null,null,"-",null,"تعويض العجز في الميزانية"]
[]
[]
[null,null,6,null,"إيرادات ناتجة عن تسديد حقوق التسجيل",null,null,null,null,{"$f":"SUM(J76:J76)","v":6700},null,null,null,null,{"$f":"J73","v":6700}]
[]
[]
[null,null,"-",null,"حقوق التسجيل (مصاريف المراسلة)",null,null,null,null,6700]
[]
[]
[null,null,7,null,"إيرادات الإطعام",null,null,null,null,{"$f":"SUM(J82:J84)","v":70800},null,null,null,null,{"$f":"J79","v":70800}]
[]
[]
[null,null,"-",null,"مساهمة عائلات التلاميذ غير الممنوحين في التغذية ",null,null,null,null,2000]
[null,null,"-",null,"ايرادات ناتجة عن إطعام مستخدمي التربية (الطاولة المشتركة / الملتقيات )",null,null,null,null,60000]
[null,null,"-",null,"ايرادات ناتجة عن إطعام المدعوين وآخرون ",null,null,null,null,8800]
[]
[]
[null,null,8,null,"المنحة المدرسية الخاصة لفائدة التلاميذ المعوزيتن",null,null,null,null,{"$f":"SUM(J90:J90)","v":0},null,null,null,null,{"$f":"J87","v":0}]
[]
[]
[null,null,"-",null,"إعتمادات المنحة المدرسية الخاصة لفائدة التلاميذ المعوزيتن",null,null,null,null,0]
[]
[]
[null,null,9,null,"مساهمة الدولة في مجانية الكتاب المدرسي لفائدة التلاميذ المعوزين",null,null,null,null,{"$f":"SUM(J96:J96)","v":0},null,null,null,null,{"$f":"J93","v":0}]
[]
[]
[null,null,"-",null,"الاعتمادات المخصصة لتغطية تكاليف مجانية الكتاب المدرسي ",null,null,null,null,0]
[]
[]
[null,null,10,null,"الإعانة الخاصة بالنشاط التربوي الاستثنائي الواردة من الباب 42-12 المادة 01",null,null,null,null,{"$f":"SUM(J102:J102)","v":0},null,null,null,null,{"$f":"J99","v":0}]
[]
[]
[null,null,"-",null,"الاعتمادات الخاصة بالتلاميذ الصحراويين "]
[]
[]
[null,null,11,null,"ايرادات واردة من الباب 43-03 ",null,null,null,null,{"$f":"SUM(J108:J108)","v":0},null,null,null,null,{"$f":"J105","v":0}]
[]
[]
[null,null,"-",null,"تغطية العمليات التكوينية  ونفقات الامتحانات والمسابقات المهنية"]
[]
[]
[]
[null,null,12,null,"ايرادات واردة من الباب 43-60 المعنون \"تشجيع التكوين أثناء الخدمة وعن بعد لمعلمي التعليم الإبتدائي \"",null,null,null,null,{"$f":"SUM(J115:J115)","v":12375},null,null,null,null,{"$f":"J112","v":12375}]
[]
[]
[null,null,"-",null,"التكوين أثناء الخدمة لمعلمي الإبتدائي",null,null,null,null,12375]
[]
[]
[null,null,"مجموع   الايرادات"]
[null,null,{"$f":"SUM(O8:O117)","v":9593000},null,null,null,null,null,null,null,null,null,null,null,{"$f":"SUM(O8:O117)","v":9593000}]

{"sheet":"النفقات","index":3,"n_rows":185,"n_cols":422,"rows_kept":185,"cut":false,"hidden":false,"merged":[[132,2,132,9],[68,4,68,7],[129,2,129,9],[71,4,71,7],[184,2,184,9],[7,2,7,8],[12,2,12,8],[21,2,21,8],[30,2,30,8],[38,2,38,8],[44,2,44,8],[58,2,58,8],[62,2,62,8],[66,2,66,8],[73,2,73,8],[84,2,84,8],[88,2,88,8],[93,2,93,8],[99,2,99,8],[105,2,105,8],[111,2,111,8],[116,2,116,8],[119,2,119,8],[122,2,122,8],[42,4,42,7],[95,4,95,7],[81,4,81,7],[112,15,114,15],[75,15,82,15],[90,15,91,15],[95,15,96,15],[101,15,103,15],[48,2,48,6],[40,2,42,2],[82,4,82,7],[86,4,86,7],[90,4,90,7],[91,4,91,7],[101,2,103,2],[53,7,53,9],[131,2,131,9],[95,2,96,2],[123,15,124,15],[127,15,128,15],[97,2,97,9],[117,4,117,7],[9,4,9,7],[68,2,71,2],[19,4,19,7],[69,4,69,7],[34,4,34,7],[9,15,10,15],[14,15,19,15],[23,15,28,15],[32,15,36,15],[40,15,42,15],[68,15,71,15],[52,2,52,4],[51,2,51,6],[54,2,54,6],[56,2,56,6],[18,4,18,7],[40,4,40,7],[41,4,41,7],[1,2,2,9],[4,4,4,7],[114,4,114,7],[75,4,75,7],[76,4,76,7],[77,4,77,7],[78,4,78,7],[79,4,79,7],[80,4,80,7],[46,4,46,7],[60,4,60,7],[64,4,64,7],[112,4,112,7],[113,4,113,7],[96,4,96,7],[101,4,101,7],[102,4,102,7],[103,4,103,7],[107,4,107,7],[25,4,25,7],[112,2,114,2],[27,4,27,7],[90,2,91,2],[49,2,49,4],[28,4,28,7],[32,4,32,7],[33,4,33,7],[35,4,35,7],[9,2,10,2],[14,2,19,2],[23,2,28,2],[32,2,36,2],[26,4,26,7],[17,4,17,7],[16,4,16,7],[36,4,36,7],[10,4,10,7],[14,4,14,7],[15,4,15,7],[23,4,23,7],[24,4,24,7],[127,2,128,2],[127,4,127,7],[128,4,128,7],[48,7,49,9],[51,7,52,9],[120,4,120,7],[123,4,123,7],[124,4,124,7],[123,2,124,2],[109,2,109,9],[54,7,54,9],[56,7,56,9],[70,4,70,7],[49,5,49,6],[52,5,52,6],[126,2,126,8],[75,2,82,2]]}
[null,null,null,"المعطيات","الايرادات","للطباعة"]
[null,null,"العنوان الثاني : النفقـــــــــــات"]
[]
[]
[null,null,"الباب","المادة","العنــــــــــــــــــــــــــــــاوين",null,null,null,null,"الإعتمادات المخصصة"]
[]
[]
[null,null,"تسديد المصاريف",null,null,null,null,null,null,{"$f":"SUM(J10:J11)","v":20000},"البنود القديمة ",null,{"$f":"IF(L8>الايرادات!$C$119,Q8,\"\")","v":""},null,null,null,"إنتبه : لقد تجاوزت الايرادات المسموح بتوزيعها  .... !!!!!!!!!!!"]
[]
[null,null,1,1,"مصاريف المهام والتنقلات داخل التراب الوطني والاستقبالات والخرجات البيداغوجية ",null,null,null,null,null,261,{"$f":"J10","v":0},{"$f":"IF(L10>الايرادات!$C$119,Q10,\"\")","v":""},null,{"$f":"J10","v":0},{"$f":"SUM($O$10:$O$11)","v":20000},"إنتبه : لقد تجاوزت الايرادات المسموح بتوزيعها  .... !!!!!!!!!!!"]
[null,null,null,2,"مصاريف الدراسة ، الخبرة ، المحامون والمحضرون القضائيون ",null,null,null,null,20000,261,{"$f":"L10+J11","v":20000},{"$f":"IF(L11>الايرادات!$C$119,Q11,\"\")","v":""},null,{"$f":"J11","v":20000},null,"إنتبه : لقد تجاوزت الايرادات المسموح بتوزيعها  .... !!!!!!!!!!!"]
[null,null,null,null,null,null,null,null,null,null,null,null,{"$f":"IF(L12>الايرادات!$C$119,Q12,\"\")","v":""},null,null,null,"إنتبه : لقد تجاوزت الايرادات المسموح بتوزيعها  .... !!!!!!!!!!!"]
[null,null,"التكاليف الملحقة",null,null,null,null,null,null,{"$f":"SUM(J15:J20)","v":450000},null,null,{"$f":"IF(L13>الايرادات!$C$119,Q13,\"\")","v":""},null,null,null,"إنتبه : لقد تجاوزت الايرادات المسموح بتوزيعها  .... !!!!!!!!!!!"]
[null,null,null,null,null,null,null,null,null,null,null,null,{"$f":"IF(L14>الايرادات!$C$119,Q14,\"\")","v":""},null,null,null,"إنتبه : لقد تجاوزت الايرادات المسموح بتوزيعها  .... !!!!!!!!!!!"]
[null,null,2,1,"الماء ، الغاز ، الكهرباء ، الوقود  والطاقة الشمسية ",null,null,null,null,380000,231,{"$f":"J15+L11","v":400000},{"$f":"IF(L15>الايرادات!$C$119,Q15,\"\")","v":""},null,{"$f":"J15","v":380000},{"$f":"SUM($O$15:$O$20)","v":450000},"إنتبه : لقد تجاوزت الايرادات المسموح بتوزيعها  .... !!!!!!!!!!!"]
[null,null,null,2,"مصاريف البريد والمواصلات ( أتاوي الهاتف ، التلكس ، الأنترنت والرسوم المختلفة )",null,null,null,null,70000,232,{"$f":"L15+J16","v":470000},{"$f":"IF(L16>الايرادات!$C$119,Q16,\"\")","v":""},null,{"$f":"J16","v":70000},null,"إنتبه : لقد تجاوزت الايرادات المسموح بتوزيعها  .... !!!!!!!!!!!"]
[null,null,null,3,"مصاريف الإعلان في الصحف",null,null,null,null,0,null,{"$f":"L16+J17","v":470000},{"$f":"IF(L17>الايرادات!$C$119,Q17,\"\")","v":""},null,0,null,"إنتبه : لقد تجاوزت الايرادات المسموح بتوزيعها  .... !!!!!!!!!!!"]
[null,null,null,4,"تسديد مصاريف الإستهلاك المنزلي للكهرباء والغاز بنسبة 50 % للجنوب",null,null,null,null,0,null,470000,{"$f":"IF(L18>الايرادات!$C$119,Q18,\"\")","v":""},null,0,null,"إنتبه : لقد تجاوزت الايرادات المسموح بتوزيعها  .... !!!!!!!!!!!"]
[null,null,null,5,"إقتناء وتركيب أدوات ولواحق الهاتف والربط بالانترنت",null,null,null,null,0,null,470000,{"$f":"IF(L19>الايرادات!$C$119,Q19,\"\")","v":""},null,0,null,"إنتبه : لقد تجاوزت الايرادات المسموح بتوزيعها  .... !!!!!!!!!!!"]
[null,null,null,6,"تأمين المباني",null,null,null,null,0,null,{"$f":"L19+J20","v":470000},{"$f":"IF(L20>الايرادات!$C$119,Q20,\"\")","v":""},null,0,null,"إنتبه : لقد تجاوزت الايرادات المسموح بتوزيعها  .... !!!!!!!!!!!"]
[null,null,null,null,null,null,null,null,null,null,null,null,{"$f":"IF(L21>الايرادات!$C$119,Q21,\"\")","v":""},null,null,null,"إنتبه : لقد تجاوزت الايرادات المسموح بتوزيعها  .... !!!!!!!!!!!"]
[null,null,"اللوازم",null,null,null,null,null,null,{"$f":"SUM(J24:J29)","v":75000},null,null,{"$f":"IF(L22>الايرادات!$C$119,Q22,\"\")","v":""},null,null,null,"إنتبه : لقد تجاوزت الايرادات المسموح بتوزيعها  .... !!!!!!!!!!!"]
[null,null,null,null,null,null,null,null,null,null,null,null,{"$f":"IF(L23>الايرادات!$C$119,Q23,\"\")","v":""},null,null,null,"إنتبه : لقد تجاوزت الايرادات المسموح بتوزيعها  .... !!!!!!!!!!!"]
[null,null,3,1,"إقتناء لوازم المكتب",null,null,null,null,10000,251,{"$f":"L20+J24","v":480000},{"$f":"IF(L24>الايرادات!$C$119,Q24,\"\")","v":""},null,{"$f":"J24","v":10000},{"$f":"SUM($O$24:$O$29)","v":75000},"إنتبه : لقد تجاوزت الايرادات المسموح بتوزيعها  .... !!!!!!!!!!!"]
[null,null,null,2,"مستهلكات وبرامج الإعلام الآلي",null,null,null,null,15000,251,{"$f":"L24+J25","v":495000},{"$f":"IF(L25>الايرادات!$C$119,Q25,\"\")","v":""},null,{"$f":"J25","v":15000},null,"إنتبه : لقد تجاوزت الايرادات المسموح بتوزيعها  .... !!!!!!!!!!!"]
[null,null,null,3,"مصاريف النسخ والطبع",null,null,null,null,15000,251,{"$f":"L25+J26","v":510000},{"$f":"IF(L26>الايرادات!$C$119,Q26,\"\")","v":""},null,15000,null,"إنتبه : لقد تجاوزت الايرادات المسموح بتوزيعها  .... !!!!!!!!!!!"]
[null,null,null,4,"البياضة",null,null,null,null,0,221,510000,{"$f":"IF(L27>الايرادات!$C$119,Q27,\"\")","v":""},null,0,null,"إنتبه : لقد تجاوزت الايرادات المسموح بتوزيعها  .... !!!!!!!!!!!"]
[null,null,null,5,"المواد الصيدلانية",null,null,null,null,0,222,510000,{"$f":"IF(L28>الايرادات!$C$119,Q28,\"\")","v":""},null,0,null,"إنتبه : لقد تجاوزت الايرادات المسموح بتوزيعها  .... !!!!!!!!!!!"]
[null,null,null,6,"مواد التنظيف",null,null,null,null,35000,271,{"$f":"L28+J29","v":545000},{"$f":"IF(L29>الايرادات!$C$119,Q29,\"\")","v":""},null,35000,null,"إنتبه : لقد تجاوزت الايرادات المسموح بتوزيعها  .... !!!!!!!!!!!"]
[null,null,null,null,null,null,null,null,null,null,null,null,{"$f":"IF(L30>الايرادات!$C$119,Q30,\"\")","v":""},null,null,null,"إنتبه : لقد تجاوزت الايرادات المسموح بتوزيعها  .... !!!!!!!!!!!"]
[null,null,"الأدوات والأثاث",null,null,null,null,null,null,{"$f":"SUM(J33:J37)","v":59000},null,null,{"$f":"IF(L31>الايرادات!$C$119,Q31,\"\")","v":""},null,null,null,"إنتبه : لقد تجاوزت الايرادات المسموح بتوزيعها  .... !!!!!!!!!!!"]
[null,null,null,null,null,null,null,null,null,null,null,null,{"$f":"IF(L32>الايرادات!$C$119,Q32,\"\")","v":""},null,null,null,"إنتبه : لقد تجاوزت الايرادات المسموح بتوزيعها  .... !!!!!!!!!!!"]
[null,null,4,1,"تجديد وصيانة أدوات وأثاث المكاتب والعتاد المدرسي والتجهيز العلمي والبيداغوجي",null,null,null,null,30000,272,{"$f":"L29+J33","v":575000},{"$f":"IF(L33>الايرادات!$C$119,Q33,\"\")","v":""},null,{"$f":"J33","v":30000},{"$f":"SUM($O$33:$O$37)","v":59000},"إنتبه : لقد تجاوزت الايرادات المسموح بتوزيعها  .... !!!!!!!!!!!"]
[null,null,null,2,"اقتناء و صيانة أجهزة الإعلام الآلي",null,null,null,null,0,272,{"$f":"L33+J34","v":575000},{"$f":"IF(L34>الايرادات!$C$119,Q34,\"\")","v":""},null,{"$f":"J34","v":0},null,"إنتبه : لقد تجاوزت الايرادات المسموح بتوزيعها  .... !!!!!!!!!!!"]
[null,null,null,3,"اقتناء وصيانة أدوات الوقاية والأمن",null,null,null,null,14000,272,{"$f":"L34+J35","v":589000},{"$f":"IF(L35>الايرادات!$C$119,Q35,\"\")","v":""},null,14000,null,"إنتبه : لقد تجاوزت الايرادات المسموح بتوزيعها  .... !!!!!!!!!!!"]
[null,null,null,4,"تجديد و صيانة لوازم ومستلزمات المطعم والمطبخ ",null,null,null,null,10000,272,599000,{"$f":"IF(L36>الايرادات!$C$119,Q36,\"\")","v":""},null,10000,null,"إنتبه : لقد تجاوزت الايرادات المسموح بتوزيعها  .... !!!!!!!!!!!"]
[null,null,null,5,"اقتناء الستائر و الأعلام و لوازم الداخلية  واللوحات الرسمية ولوحات التوجيه",null,null,null,null,5000,221,604000,{"$f":"IF(L37>الايرادات!$C$119,Q37,\"\")","v":""},null,5000,null,"إنتبه : لقد تجاوزت الايرادات المسموح بتوزيعها  .... !!!!!!!!!!!"]
[null,null,null,null,null,null,null,null,null,null,null,null,{"$f":"IF(L38>الايرادات!$C$119,Q38,\"\")","v":""},null,null,null,"إنتبه : لقد تجاوزت الايرادات المسموح بتوزيعها  .... !!!!!!!!!!!"]
[null,null,"اللوازم البيداغوجية",null,null,null,null,null,null,{"$f":"SUM(J41:J43)","v":156000},null,null,{"$f":"IF(L39>الايرادات!$C$119,Q39,\"\")","v":""},null,null,null,"إنتبه : لقد تجاوزت الايرادات المسموح بتوزيعها  .... !!!!!!!!!!!"]
[null,null,null,null,null,null,null,null,null,null,null,null,{"$f":"IF(L40>الايرادات!$C$119,Q40,\"\")","v":""},null,null,null,"إنتبه : لقد تجاوزت الايرادات المسموح بتوزيعها  .... !!!!!!!!!!!"]
[null,null,5,1,"لوازم التجارب",null,null,null,null,30000,241,{"$f":"L37+J41","v":634000},{"$f":"IF(L41>الايرادات!$C$119,Q41,\"\")","v":""},null,{"$f":"J41","v":30000},{"$f":"SUM($O$41:$O$43)","v":156000},"إنتبه : لقد تجاوزت الايرادات المسموح بتوزيعها  .... !!!!!!!!!!!"]
[null,null,null,2,"مواد التجارب والكواشف ومواد المخابر",null,null,null,null,5000,241,{"$f":"L41+J42","v":639000},{"$f":"IF(L42>الايرادات!$C$119,Q42,\"\")","v":""},null,{"$f":"J42","v":5000},null,"إنتبه : لقد تجاوزت الايرادات المسموح بتوزيعها  .... !!!!!!!!!!!"]
[null,null,null,3,"الإستنساخ ، الطباشير ، الأقلام ، الطلاسات وغيرها ",null,null,null,null,121000,242,{"$f":"L42+J43","v":760000},{"$f":"IF(L43>الايرادات!$C$119,Q43,\"\")","v":""},null,121000,null,"إنتبه : لقد تجاوزت الايرادات المسموح بتوزيعها  .... !!!!!!!!!!!"]
[null,null,null,null,null,null,null,null,null,null,null,null,{"$f":"IF(L44>الايرادات!$C$119,Q44,\"\")","v":""},null,null,null,"إنتبه : لقد تجاوزت الايرادات المسموح بتوزيعها  .... !!!!!!!!!!!"]
[null,null,"الإطعام",null,null,null,null,null,null,{"$f":"J47","v":8384800},null,null,{"$f":"IF(L45>الايرادات!$C$119,Q45,\"\")","v":""},null,null,null,"إنتبه : لقد تجاوزت الايرادات المسموح بتوزيعها  .... !!!!!!!!!!!"]
[null,null,null,null,null,null,null,null,null,null,null,null,{"$f":"IF(L46>الايرادات!$C$119,Q46,\"\")","v":""},null,null,null,"إنتبه : لقد تجاوزت الايرادات المسموح بتوزيعها  .... !!!!!!!!!!!"]
[null,null,6,1,"الإطعام",null,null,null,null,{"$f":"SUM(H49:J57)","v":8384800},211,{"$f":"L43+J47","v":9144800},{"$f":"IF(L47>الايرادات!$C$119,Q47,\"\")","v":""},null,{"$f":"J47+H54","v":8384800},{"$f":"$O$47","v":8384800},"إنتبه : لقد تجاوزت الايرادات المسموح بتوزيعها  .... !!!!!!!!!!!",null,null,null,null,null,null,null,null,null,null,null,null,null,null,null,null,null,null,null,null,null,null,null,null,null,null,null,null,null,null,null,null,null,null,null,null,null,null,null,null,null,null,null,null,null,null,null,null,null,null,null,null,null,null,null,null,null,null,null,null,null,null,null,null,null,null,null,null,null,null,null,null,null,null,null,null,null,null,null,null,null,null,null,null,null,null,null,null,null,null,null,null,null,null,null,null,null,null,null,null,null,null,null,null,null,null,null,null,null,null,null,null,null,null,null,null,null,null,null,null,null,null,null,null,null,null,null,null,null,null,null,null,null,null,null,null,null,null,null,null,null,null,null,null,null,null,null,null,null,null,null,null,null,null,null,null,null,null,null,null,null,null,null,null,null,null,null,null,null,null,null,null,null,null,null,null,null,null,null,null,null,null,null,null,null,null,null,null,null,null,null,null,null,null,null,null,null,null,null,null,null,null,null,null,null,null,null,null,null,null,null,null,null,null,null,null,null,null,null,null,null,null,null,null,null,null,null,null,null,null,null,null,null,null,null,null,null,null,null,null,null,null,null,null,null,null,null,null,null,null,null,null,null,null,null,null,null,null,null,null,null,null,null,null,null,null,null,null,null,null,null,null,null,null,null,null,null,null,null,null,null,null,null,null,null,null,null,null,null,null,null,null,null,null,null,null,null,null,null,null,null,null,null,null,null,null,null,null,null,null,null,null,null,null,null,null,null,null,null,null,null,null,null,null,null,null,null,null,null,null,null,null,null,null,null,null,null,null,null,null,null,null,null,null,null,null,null,null,null,null,null,null,null,null,null,null,null,null,null,null,null,null,null,null,null,null,null,null,null,null,null,null,null,null,null,null,null,null,null,null,null,null,null,null,null,null,null,null,null,null,null,null,null,null,null,null,null,null,null,null,null,null,null,8384800]
[null,null,null,null,null,null,null,null,null,null,null,null,{"$f":"IF(L48>الايرادات!$C$119,Q48,\"\")","v":""},null,null,null,"إنتبه : لقد تجاوزت الايرادات المسموح بتوزيعها  .... !!!!!!!!!!!"]
[null,null,"داخليين= عدد التلاميذ   x  المبلغ السنوي",null,null,null,null,{"$f":"C50*F50","v":0},null,null,211,null,{"$f":"IF(L49>الايرادات!$C$119,Q49,\"\")","v":""},null,null,null,"إنتبه : لقد تجاوزت الايرادات المسموح بتوزيعها  .... !!!!!!!!!!!"]
[null,null,{"$f":"معطيات!D23","v":0},null,null,{"$f":"F53*2","v":24000},null,null,null,null,null,null,{"$f":"IF(L50>الايرادات!$C$119,Q50,\"\")","v":""},null,null,null,"إنتبه : لقد تجاوزت الايرادات المسموح بتوزيعها  .... !!!!!!!!!!!"]
[null,null,null,null,null,null,null,null,null,null,null,null,{"$f":"IF(L51>الايرادات!$C$119,Q51,\"\")","v":""},null,null,null,"إنتبه : لقد تجاوزت الايرادات المسموح بتوزيعها  .... !!!!!!!!!!!"]
[null,null,"نصف الداخليي ن =   عدد التلاميذ   x  المبلغ السنوي",null,null,null,null,{"$f":"C53*F53","v":8316000},null,null,null,null,{"$f":"IF(L52>الايرادات!$C$119,Q52,\"\")","v":""},null,null,null,"إنتبه : لقد تجاوزت الايرادات المسموح بتوزيعها  .... !!!!!!!!!!!"]
[null,null,{"$f":"معطيات!F23","v":693},null,null,{"$f":"معطيات!P514","v":12000},null,null,null,null,211,null,{"$f":"IF(L53>الايرادات!$C$119,Q53,\"\")","v":""},null,null,null,"إنتبه : لقد تجاوزت الايرادات المسموح بتوزيعها  .... !!!!!!!!!!!",null,null,null,null,null,null,null,null,null,null,null,null,null,null,null,null,null,null,null,null,null,null,null,null,null,null,null,null,null,null,null,null,null,null,null,null,null,null,null,null,null,null,null,null,null,null,null,null,null,null,null,null,null,null,null,null,null,null,null,null,null,null,null,null,null,null,null,null,null,null,null,null,null,null,null,null,null,null,null,null,null,null,null,null,null,null,null,null,null,null,null,null,null,null,null,null,null,null,null,null,null,null,null,null,null,null,null,null,null,null,null,null,null,null,null,null,null,null,null,null,null,null,null,null,null,null,null,null,null,null,null,null,null,null,null,null,null,null,null,null,null,null,null,null,null,null,null,null,null,null,null,null,null,null,null,null,null,null,null,null,null,null,null,null,null,null,null,null,null,null,null,null,null,null,null,null,null,null,null,null,null,null,null,null,null,null,null,null,null,null,null,null,null,null,null,null,null,null,null,null,null,null,null,null,null,null,null,null,null,null,null,null,null,null,null,null,null,null,null,null,null,null,null,null,null,null,null,null,null,null,null,null,null,null,null,null,null,null,null,null,null,null,null,null,null,null,null,null,null,null,null,null,null,null,null,null,null,null,null,null,null,null,null,null,null,null,null,null,null,null,null,null,null,null,null,null,null,null,null,null,null,null,null,null,null,null,null,null,null,null,null,null,null,null,null,null,null,null,null,null,null,null,null,null,null,null,null,null,null,null,null,null,null,null,null,null,null,null,null,null,null,null,null,null,null,null,null,null,null,null,null,null,null,null,null,null,null,null,null,null,null,null,null,null,null,null,null,null,null,null,null,null,null,null,null,null,null,null,null,null,null,null,null,null,null,null,null,null,null,null,null,null,null,null,null,null,null,null,null,null,null,null,null,null,null,null,null,null,null,null,null,null,null,null,null,null,null,null,null,null,null,null,null,null,{"$f":"F53/18","v":666.66666666666663}]
[null,null,null,null,null,null,null,0,null,null,null,null,{"$f":"IF(L54>الايرادات!$C$119,Q54,\"\")","v":""},null,null,null,"إنتبه : لقد تجاوزت الايرادات المسموح بتوزيعها  .... !!!!!!!!!!!"]
[null,null,"إطعام المستخدمين     ",null,null,null,null,{"$f":"الايرادات!J83","v":60000},null,null,211,null,{"$f":"IF(L55>الايرادات!$C$119,Q55,\"\")","v":""},null,null,null,"إنتبه : لقد تجاوزت الايرادات المسموح بتوزيعها  .... !!!!!!!!!!!"]
[null,null,null,null,null,null,null,null,null,null,null,null,{"$f":"IF(L56>الايرادات!$C$119,Q56,\"\")","v":""},null,null,null,"إنتبه : لقد تجاوزت الايرادات المسموح بتوزيعها  .... !!!!!!!!!!!"]
[null,null,"إطعام المدعوين و آخرون  ",null,null,null,null,{"$f":"الايرادات!J84","v":8800},null,null,211,null,{"$f":"IF(L57>الايرادات!$C$119,Q57,\"\")","v":""},null,null,null,"إنتبه : لقد تجاوزت الايرادات المسموح بتوزيعها  .... !!!!!!!!!!!"]
[null,null,null,null,null,null,null,null,null,null,null,null,{"$f":"IF(L58>الايرادات!$C$119,Q58,\"\")","v":""},null,null,null,"إنتبه : لقد تجاوزت الايرادات المسموح بتوزيعها  .... !!!!!!!!!!!"]
[null,null,"الألبسة",null,null,null,null,null,null,{"$f":"J61","v":17000},null,null,{"$f":"IF(L59>الايرادات!$C$119,Q59,\"\")","v":""},null,null,null,"إنتبه : لقد تجاوزت الايرادات المسموح بتوزيعها  .... !!!!!!!!!!!"]
[null,null,null,null,null,null,null,null,null,null,null,null,{"$f":"IF(L60>الايرادات!$C$119,Q60,\"\")","v":""},null,null,null,"إنتبه : لقد تجاوزت الايرادات المسموح بتوزيعها  .... !!!!!!!!!!!"]
[null,null,7,1,"ملابس العمال المهنيين (المآزر ، بذلات العمال ، أحذية الوقاية ، قفازات ، بزات أعوان الأمن  والوقاية )",null,null,null,null,17000,221,{"$f":"L47+J61","v":9161800},{"$f":"IF(L61>الايرادات!$C$119,Q61,\"\")","v":""},null,{"$f":"J61","v":17000},{"$f":"O61","v":17000},"إنتبه : لقد تجاوزت الايرادات المسموح بتوزيعها  .... !!!!!!!!!!!"]
[null,null,null,null,null,null,null,null,null,null,null,null,{"$f":"IF(L62>الايرادات!$C$119,Q62,\"\")","v":""},null,null,null,"إنتبه : لقد تجاوزت الايرادات المسموح بتوزيعها  .... !!!!!!!!!!!"]
[null,null,"التأمين",null,null,null,null,null,null,{"$f":"J65","v":0},null,null,{"$f":"IF(L63>الايرادات!$C$119,Q63,\"\")","v":""},null,null,null,"إنتبه : لقد تجاوزت الايرادات المسموح بتوزيعها  .... !!!!!!!!!!!"]
[null,null,null,null,null,null,null,null,null,null,null,null,{"$f":"IF(L64>الايرادات!$C$119,Q64,\"\")","v":""},null,null,null,"إنتبه : لقد تجاوزت الايرادات المسموح بتوزيعها  .... !!!!!!!!!!!"]
[null,null,8,1,"تأمين التلاميذ أثناء الخرجات البيداغوجية",null,null,null,null,null,245,{"$f":"L61+J65","v":9161800},{"$f":"IF(L65>الايرادات!$C$119,Q65,\"\")","v":""},null,{"$f":"J65","v":0},{"$f":"O65","v":0},"إنتبه : لقد تجاوزت الايرادات المسموح بتوزيعها  .... !!!!!!!!!!!"]
[null,null,null,null,null,null,null,null,null,null,null,null,{"$f":"IF(L66>الايرادات!$C$119,Q66,\"\")","v":""},null,null,null,"إنتبه : لقد تجاوزت الايرادات المسموح بتوزيعها  .... !!!!!!!!!!!"]
[null,null,"نفقات التكوين",null,null,null,null,null,null,{"$f":"SUM(J69:J72)","v":12375},null,null,{"$f":"IF(L67>الايرادات!$C$119,Q67,\"\")","v":""},null,null,null,"إنتبه : لقد تجاوزت الايرادات المسموح بتوزيعها  .... !!!!!!!!!!!"]
[null,null,null,null,null,null,null,null,null,null,null,null,{"$f":"IF(L68>الايرادات!$C$119,Q68,\"\")","v":""},null,null,null,"إنتبه : لقد تجاوزت الايرادات المسموح بتوزيعها  .... !!!!!!!!!!!"]
[null,null,9,1,"مصاريف التكوين والتحسين المستمرللمستوى المنظم على المستوى الولائي",null,null,null,null,0,422,{"$f":"L65+J69","v":9161800},{"$f":"IF(L69>الايرادات!$C$119,Q69,\"\")","v":""},null,{"$f":"J69","v":0},{"$f":"SUM(O69:O72)","v":12375},"إنتبه : لقد تجاوزت الايرادات المسموح بتوزيعها  .... !!!!!!!!!!!"]
[null,null,null,2,"نفقات التكوين ما قبل الترقية",null,null,null,null,null,422,{"$f":"L69+J70","v":9161800},{"$f":"IF(L70>الايرادات!$C$119,Q70,\"\")","v":""},null,{"$f":"J70","v":0},null,"إنتبه : لقد تجاوزت الايرادات المسموح بتوزيعها  .... !!!!!!!!!!!"]
[null,null,null,3,"نفقات الامتحانات و المسابقات المهنية",null,null,null,null,null,422,{"$f":"L70+J71","v":9161800},{"$f":"IF(L71>الايرادات!$C$119,Q71,\"\")","v":""},null,0,null,"إنتبه : لقد تجاوزت الايرادات المسموح بتوزيعها  .... !!!!!!!!!!!"]
[null,null,null,4,"تشجيع التكوين أثناء الخدمة و عن بعد لمعلمي التعليم الإبتدائي",null,null,null,null,12375,422,9174175,{"$f":"IF(L72>الايرادات!$C$119,Q72,\"\")","v":""},null,12375,null,"إنتبه : لقد تجاوزت الايرادات المسموح بتوزيعها  .... !!!!!!!!!!!"]
[null,null,null,null,null,null,null,null,null,null,null,null,{"$f":"IF(L73>الايرادات!$C$119,Q73,\"\")","v":""},null,null,null,"إنتبه : لقد تجاوزت الايرادات المسموح بتوزيعها  .... !!!!!!!!!!!"]
[null,null,"حظيرة السيارات",null,null,null,null,null,null,{"$f":"SUM(J76:J83)","v":0},null,null,{"$f":"IF(L74>الايرادات!$C$119,Q74,\"\")","v":""},null,null,null,"إنتبه : لقد تجاوزت الايرادات المسموح بتوزيعها  .... !!!!!!!!!!!"]
[null,null,null,null,null,null,null,null,null,null,null,null,{"$f":"IF(L75>الايرادات!$C$119,Q75,\"\")","v":""},null,null,null,"إنتبه : لقد تجاوزت الايرادات المسموح بتوزيعها  .... !!!!!!!!!!!"]
[null,null,10,1,"إقتناء وتجديد السيارات",null,null,null,null,null,281,{"$f":"L72+J76","v":9174175},{"$f":"IF(L76>الايرادات!$C$119,Q76,\"\")","v":""},null,{"$f":"J76","v":0},{"$f":"SUM($O$76:$O$83)","v":0},"إنتبه : لقد تجاوزت الايرادات المسموح بتوزيعها  .... !!!!!!!!!!!"]
[null,null,null,2,"الوقود والزيوت",null,null,null,null,null,282,{"$f":"L76+J77","v":9174175},{"$f":"IF(L77>الايرادات!$C$119,Q77,\"\")","v":""},null,{"$f":"J77","v":0},null,"إنتبه : لقد تجاوزت الايرادات المسموح بتوزيعها  .... !!!!!!!!!!!"]
[null,null,null,3,"صيانة وإصلاح السيارات وشراء قطع الغيار",null,null,null,null,null,282,{"$f":"L77+J78","v":9174175},{"$f":"IF(L78>الايرادات!$C$119,Q78,\"\")","v":""},null,0,null,"إنتبه : لقد تجاوزت الايرادات المسموح بتوزيعها  .... !!!!!!!!!!!"]
[null,null,null,4,"اقتناء العجلات",null,null,null,null,null,282,9174175,{"$f":"IF(L79>الايرادات!$C$119,Q79,\"\")","v":""},null,0,null,"إنتبه : لقد تجاوزت الايرادات المسموح بتوزيعها  .... !!!!!!!!!!!"]
[null,null,null,5,"مصاريف الترقيم والتعريف",null,null,null,null,null,282,9174175,{"$f":"IF(L80>الايرادات!$C$119,Q80,\"\")","v":""},null,0,null,"إنتبه : لقد تجاوزت الايرادات المسموح بتوزيعها  .... !!!!!!!!!!!"]
[null,null,null,6,"تأمين السيارات",null,null,null,null,null,282,9174175,{"$f":"IF(L81>الايرادات!$C$119,Q81,\"\")","v":""},null,0,null,"إنتبه : لقد تجاوزت الايرادات المسموح بتوزيعها  .... !!!!!!!!!!!"]
[null,null,null,7,"مصاريف اقتناء قسيمة السيارات",null,null,null,null,null,282,9174175,{"$f":"IF(L82>الايرادات!$C$119,Q82,\"\")","v":""},null,0,null,"إنتبه : لقد تجاوزت الايرادات المسموح بتوزيعها  .... !!!!!!!!!!!"]
[null,null,null,8,"مصاريف المراقبة التقنية للسيارات",null,null,null,null,null,282,9174175,{"$f":"IF(L83>الايرادات!$C$119,Q83,\"\")","v":""},null,0,null,"إنتبه : لقد تجاوزت الايرادات المسموح بتوزيعها  .... !!!!!!!!!!!"]
[null,null,null,null,null,null,null,null,null,null,null,null,{"$f":"IF(L84>الايرادات!$C$119,Q84,\"\")","v":""},null,null,null,"إنتبه : لقد تجاوزت الايرادات المسموح بتوزيعها  .... !!!!!!!!!!!"]
[null,null,"نفقات تسيير وحدة الكشف والمتابعة (UDS)",null,null,null,null,null,null,{"$f":"J87","v":148000},null,null,{"$f":"IF(L85>الايرادات!$C$119,Q85,\"\")","v":""},null,null,null,"إنتبه : لقد تجاوزت الايرادات المسموح بتوزيعها  .... !!!!!!!!!!!"]
[null,null,null,null,null,null,null,null,null,null,null,null,{"$f":"IF(L86>الايرادات!$C$119,Q86,\"\")","v":""},null,null,null,"إنتبه : لقد تجاوزت الايرادات المسموح بتوزيعها  .... !!!!!!!!!!!"]
[null,null,11,1,"نفقات تسيير وحدة الكشف والمتابعة (UDS)",null,null,null,null,{"$f":"الايرادات!J18","v":148000},null,{"$f":"L83+J87","v":9322175},{"$f":"IF(L87>الايرادات!$C$119,Q87,\"\")","v":""},null,{"$f":"J87","v":148000},{"$f":"$O$87","v":148000},"إنتبه : لقد تجاوزت الايرادات المسموح بتوزيعها  .... !!!!!!!!!!!"]
[null,null,null,null,null,null,null,null,null,null,null,null,{"$f":"IF(L88>الايرادات!$C$119,Q88,\"\")","v":""},null,null,null,"إنتبه : لقد تجاوزت الايرادات المسموح بتوزيعها  .... !!!!!!!!!!!"]
[null,null,"المكتبة المدرسية",null,null,null,null,null,null,{"$f":"SUM(J91:J92)","v":50600},null,null,{"$f":"IF(L89>الايرادات!$C$119,Q89,\"\")","v":""},null,null,null,"إنتبه : لقد تجاوزت الايرادات المسموح بتوزيعها  .... !!!!!!!!!!!"]
[null,null,null,null,null,null,null,null,null,null,null,null,{"$f":"IF(L90>الايرادات!$C$119,Q90,\"\")","v":""},null,null,null,"إنتبه : لقد تجاوزت الايرادات المسموح بتوزيعها  .... !!!!!!!!!!!"]
[null,null,12,1,"شراء كتب ومجلات تربوية",null,null,null,null,30000,244,{"$f":"L87+J91","v":9352175},null,null,{"$f":"J91","v":30000},{"$f":"SUM($O$91:$O$92)","v":50600},"إنتبه : لقد تجاوزت الايرادات المسموح بتوزيعها  .... !!!!!!!!!!!"]
[null,null,null,2,"الإشتراك في المجلات والدوريات البيداغوجية",null,null,null,null,20600,244,{"$f":"L91+J92","v":9372775},{"$f":"IF(L92>الايرادات!$C$119,Q92,\"\")","v":""},null,{"$f":"J92","v":20600},null,"إنتبه : لقد تجاوزت الايرادات المسموح بتوزيعها  .... !!!!!!!!!!!"]
[null,null,null,null,null,null,null,null,null,null,null,null,{"$f":"IF(L93>الايرادات!$C$119,Q93,\"\")","v":""},null,null,null,"إنتبه : لقد تجاوزت الايرادات المسموح بتوزيعها  .... !!!!!!!!!!!"]
[null,null,"النفقات المتعلقة بالنشاط الثقافي والرياضي",null,null,null,null,null,null,{"$f":"SUM(J96:J97)","v":98100},null,null,{"$f":"IF(L94>الايرادات!$C$119,Q94,\"\")","v":""},null,null,null,"إنتبه : لقد تجاوزت الايرادات المسموح بتوزيعها  .... !!!!!!!!!!!"]
[null,null,null,null,null,null,null,null,null,null,null,null,{"$f":"IF(L95>الايرادات!$C$119,Q95,\"\")","v":""},null,null,null,"إنتبه : لقد تجاوزت الايرادات المسموح بتوزيعها  .... !!!!!!!!!!!"]
[null,null,13,1,"النفقات المتعلقة بالنشاط الثقافي",null,null,null,null,63100,245,{"$f":"L92+J96","v":9435875},{"$f":"IF(L96>الايرادات!$C$119,Q96,\"\")","v":""},null,{"$f":"J96","v":63100},{"$f":"SUM($O$96:$O$97)","v":98100},"إنتبه : لقد تجاوزت الايرادات المسموح بتوزيعها  .... !!!!!!!!!!!"]
[null,null,null,2,"النفقات المتعلقة بالنشاط الرياضي",null,null,null,null,35000,245,{"$f":"L96+J97","v":9470875},{"$f":"IF(L97>الايرادات!$C$119,Q97,\"\")","v":""},null,{"$f":"J97","v":35000},null,"إنتبه : لقد تجاوزت الايرادات المسموح بتوزيعها  .... !!!!!!!!!!!"]
[null,null,"يضم هذا الباب زيادة على النشاطين الثقافي والرياضي  توزيع الجوائز التحفيزية للتلاميذ",null,null,null,null,null,null,null,null,null,{"$f":"IF(L98>الايرادات!$C$119,Q98,\"\")","v":""},null,null,null,"إنتبه : لقد تجاوزت الايرادات المسموح بتوزيعها  .... !!!!!!!!!!!"]
[null,null,null,null,null,null,null,null,null,null,null,null,{"$f":"IF(L99>الايرادات!$C$119,Q99,\"\")","v":""},null,null,null,"إنتبه : لقد تجاوزت الايرادات المسموح بتوزيعها  .... !!!!!!!!!!!"]
[null,null,"صيانة وتصليح المباني البيداغوجية والإدارية",null,null,null,null,null,null,{"$f":"SUM(J102:J104)","v":112997},null,null,{"$f":"IF(L100>الايرادات!$C$119,Q100,\"\")","v":""},null,null,null,"إنتبه : لقد تجاوزت الايرادات المسموح بتوزيعها  .... !!!!!!!!!!!"]
[null,null,null,null,null,null,null,null,null,null,null,null,{"$f":"IF(L101>الايرادات!$C$119,Q101,\"\")","v":""},null,null,null,"إنتبه : لقد تجاوزت الايرادات المسموح بتوزيعها  .... !!!!!!!!!!!"]
[null,null,14,1,"صيانة المباني البيداغوجية والإدارية",null,null,null,null,null,271,{"$f":"L97+J102","v":9470875},{"$f":"IF(L102>الايرادات!$C$119,Q102,\"\")","v":""},null,{"$f":"J102","v":0},{"$f":"SUM($O$102:$O$104)","v":112997},"إنتبه : لقد تجاوزت الايرادات المسموح بتوزيعها  .... !!!!!!!!!!!"]
[null,null,null,2,"اقتناء مواد البناء، الترصيص، الخردوات، كهرباء، التدفئة التكييف وأدوات الصيانة الصغيرة",null,null,null,null,112997,271,{"$f":"L102+J103","v":9583872},{"$f":"IF(L103>الايرادات!$C$119,Q103,\"\")","v":""},null,{"$f":"J103","v":112997},null,"إنتبه : لقد تجاوزت الايرادات المسموح بتوزيعها  .... !!!!!!!!!!!"]
[null,null,null,3,"صيانة المساحات الخضراء والمسالك",null,null,null,null,null,271,{"$f":"L103+J104","v":9583872},{"$f":"IF(L104>الايرادات!$C$119,Q104,\"\")","v":""},null,0,null,"إنتبه : لقد تجاوزت الايرادات المسموح بتوزيعها  .... !!!!!!!!!!!"]
[null,null,null,null,null,null,null,null,null,null,null,null,{"$f":"IF(L105>الايرادات!$C$119,Q105,\"\")","v":""},null,null,null,"إنتبه : لقد تجاوزت الايرادات المسموح بتوزيعها  .... !!!!!!!!!!!"]
[null,null,"المصاريف القضائية والتعويضات المستحقة على عاتق الدولة",null,null,null,null,null,null,{"$f":"J108","v":0},null,null,{"$f":"IF(L106>الايرادات!$C$119,Q106,\"\")","v":""},null,null,null,"إنتبه : لقد تجاوزت الايرادات المسموح بتوزيعها  .... !!!!!!!!!!!"]
[null,null,null,null,null,null,null,null,null,null,null,null,{"$f":"IF(L107>الايرادات!$C$119,Q107,\"\")","v":""},null,null,null,"إنتبه : لقد تجاوزت الايرادات المسموح بتوزيعها  .... !!!!!!!!!!!"]
[null,null,15,1,"المصاريف القضائية والتعويضات المستحقة على عاتق الدولة ",null,null,null,null,null,261,{"$f":"L104+J108","v":9583872},{"$f":"IF(L108>الايرادات!$C$119,Q108,\"\")","v":""},null,{"$f":"J108","v":0},{"$f":"$O$108","v":0},"إنتبه : لقد تجاوزت الايرادات المسموح بتوزيعها  .... !!!!!!!!!!!"]
[null,null,null,null,null,null,null,null,null,null,null,null,{"$f":"IF(L109>الايرادات!$C$119,Q109,\"\")","v":""},null,null,null,"إنتبه : لقد تجاوزت الايرادات المسموح بتوزيعها  .... !!!!!!!!!!!"]
[null,null,"نفقات ذات طابع خاص",null,null,null,null,null,null,null,null,null,{"$f":"IF(L110>الايرادات!$C$119,Q110,\"\")","v":""},null,null,null,"إنتبه : لقد تجاوزت الايرادات المسموح بتوزيعها  .... !!!!!!!!!!!"]
[null,null,null,null,null,null,null,null,null,null,null,null,{"$f":"IF(L111>الايرادات!$C$119,Q111,\"\")","v":""},null,null,null,"إنتبه : لقد تجاوزت الايرادات المسموح بتوزيعها  .... !!!!!!!!!!!"]
[null,null,"نفقات تسيير أقسام الرياضة والدراسة",null,null,null,null,null,null,{"$f":"SUM(J113:J115)","v":0},null,null,{"$f":"IF(L112>الايرادات!$C$119,Q112,\"\")","v":""},null,null,null,"إنتبه : لقد تجاوزت الايرادات المسموح بتوزيعها  .... !!!!!!!!!!!"]
[null,null,1,1,"مصاريف الإطعام",null,null,null,null,null,245,{"$f":"L108+J113","v":9583872},{"$f":"IF(L113>الايرادات!$C$119,Q113,\"\")","v":""},null,{"$f":"J113","v":0},{"$f":"SUM($O$113:$O$115)","v":0},"إنتبه : لقد تجاوزت الايرادات المسموح بتوزيعها  .... !!!!!!!!!!!"]
[null,null,null,2,"نقل وتأمين التلاميذ",null,null,null,null,null,245,{"$f":"L113+J114","v":9583872},{"$f":"IF(L114>الايرادات!$C$119,Q114,\"\")","v":""},null,{"$f":"J114","v":0},null,"إنتبه : لقد تجاوزت الايرادات المسموح بتوزيعها  .... !!!!!!!!!!!"]
[null,null,null,3,"الأدوات واللوازم الرياضية والبيداغوجية",null,null,null,null,null,245,{"$f":"L114+J115","v":9583872},{"$f":"IF(L115>الايرادات!$C$119,Q115,\"\")","v":""},null,0,null,"إنتبه : لقد تجاوزت الايرادات المسموح بتوزيعها  .... !!!!!!!!!!!"]
[null,null,null,null,null,null,null,null,null,null,null,null,{"$f":"IF(L116>الايرادات!$C$119,Q116,\"\")","v":""},null,null,null,"إنتبه : لقد تجاوزت الايرادات المسموح بتوزيعها  .... !!!!!!!!!!!"]
[null,null,"منحة التمدرس الخاصة",null,null,null,null,null,null,{"$f":"J118","v":0},null,null,{"$f":"IF(L117>الايرادات!$C$119,Q117,\"\")","v":""},null,null,null,"إنتبه : لقد تجاوزت الايرادات المسموح بتوزيعها  .... !!!!!!!!!!!"]
[null,null,1,1,"منحة التمدرس الخاصة للتلاميذ المعوزين",null,null,null,null,{"$f":"الايرادات!J87","v":0},424,{"$f":"L115+J118","v":9583872},{"$f":"IF(L118>الايرادات!$C$119,Q118,\"\")","v":""},null,{"$f":"J118","v":0},{"$f":"$O$118","v":0},"إنتبه : لقد تجاوزت الايرادات المسموح بتوزيعها  .... !!!!!!!!!!!"]
[null,null,null,null,null,null,null,null,null,null,null,null,{"$f":"IF(L119>الايرادات!$C$119,Q119,\"\")","v":""},null,null,null,"إنتبه : لقد تجاوزت الايرادات المسموح بتوزيعها  .... !!!!!!!!!!!"]
[null,null,"المنح المدرسية",null,null,null,null,null,null,{"$f":"J121","v":0},null,null,{"$f":"IF(L120>الايرادات!$C$119,Q120,\"\")","v":""},null,null,null,"إنتبه : لقد تجاوزت الايرادات المسموح بتوزيعها  .... !!!!!!!!!!!"]
[null,null,2,1,"منحة التجهيز لفائدة التلاميذ",null,null,null,null,0,122,{"$f":"L118+J121","v":9583872},{"$f":"IF(L121>الايرادات!$C$119,Q121,\"\")","v":""},null,{"$f":"J121","v":0},{"$f":"O121","v":0},"إنتبه : لقد تجاوزت الايرادات المسموح بتوزيعها  .... !!!!!!!!!!!"]
[null,null,null,null,null,null,null,null,null,null,null,null,{"$f":"IF(L122>الايرادات!$C$119,Q122,\"\")","v":""},null,null,null,"إنتبه : لقد تجاوزت الايرادات المسموح بتوزيعها  .... !!!!!!!!!!!"]
[null,null,"نفقات الكتاب المدرسي",null,null,null,null,null,null,{"$f":"SUM(J124:J125)","v":0},131,null,{"$f":"IF(L123>الايرادات!$C$119,Q123,\"\")","v":""},null,null,null,"إنتبه : لقد تجاوزت الايرادات المسموح بتوزيعها  .... !!!!!!!!!!!"]
[null,null,3,1,"تعويض النفقات المرتبطة بمجانية الكتاب المدرسي لفائدة التلاميذ المعوزين",null,null,null,null,{"$f":"الايرادات!J96","v":0},411,{"$f":"L121+J124","v":9583872},{"$f":"IF(L124>الايرادات!$C$119,Q124,\"\")","v":""},null,{"$f":"J124","v":0},{"$f":"SUM(O124:O125)","v":0},"إنتبه : لقد تجاوزت الايرادات المسموح بتوزيعها  .... !!!!!!!!!!!"]
[null,null,null,2,"تسديد مستحقات الديوان الوطني للمطبوعات المدرسية من بيع الكتاب المدرسي والوثائق الشبه مدرسية ",null,null,null,null,null,411,{"$f":"L124+J125","v":9583872},{"$f":"IF(L125>الايرادات!$C$119,Q125,\"\")","v":""},null,{"$f":"J125","v":0},null,"إنتبه : لقد تجاوزت الايرادات المسموح بتوزيعها  .... !!!!!!!!!!!"]
[null,null,null,null,null,null,null,null,null,null,null,null,{"$f":"IF(L126>الايرادات!$C$119,Q126,\"\")","v":""},null,null,null,"إنتبه : لقد تجاوزت الايرادات المسموح بتوزيعها  .... !!!!!!!!!!!"]
[null,null,"نفقات النشاط التربوي الإستثنائي",null,null,null,null,null,null,{"$f":"SUM(J128:J129)","v":0},null,null,{"$f":"IF(L127>الايرادات!$C$119,Q127,\"\")","v":""},null,null,null,"إنتبه : لقد تجاوزت الايرادات المسموح بتوزيعها  .... !!!!!!!!!!!"]
[null,null,4,1,"الإطعام",null,null,null,null,null,211,{"$f":"L125+J128","v":9583872},{"$f":"IF(L128>الايرادات!$C$119,Q128,\"\")","v":""},null,{"$f":"J128","v":0},{"$f":"SUM(O128:O129)","v":0},"إنتبه : لقد تجاوزت الايرادات المسموح بتوزيعها  .... !!!!!!!!!!!"]
[null,null,null,2,"مصاريف الإقامة و التمدرس",null,null,null,null,null,211,{"$f":"L128+J129","v":9583872},{"$f":"IF(L129>الايرادات!$C$119,Q129,\"\")","v":""},null,{"$f":"J129","v":0},null,"إنتبه : لقد تجاوزت الايرادات المسموح بتوزيعها  .... !!!!!!!!!!!"]
[null,null,"هذا الباب خاص للتكفل بإطعام وايواء التلاميذ الصحراويين"]
[]
[null,null,"المجموع العام النفقات"]
[null,null,{"$f":"O135","v":9583872}]
[]
[null,null,null,null,null,null,null,null,null,null,null,null,null,null,{"$f":"SUM($O$10:$O$129)","v":9583872},{"$f":"SUM($P$10:$P$129)","v":9583872}]
[]
[]
[]
[]
[]
[]
[]
[]
[]
[]
[]
[]
[]
[]
[]
[]
[]
[]
[]
[]
[]
[]
[]
[]
[]
[]
[]
[]
[]
[]
[]
[]
[]
[]
[]
[]
[]
[]
[]
[]
[]
[]
[]
[]
[]
[]
[]
[]
[]
[null,null,{"$f":"الايرادات!C119-C133","v":9128}]

{"sheet":"الطباعة","index":4,"n_rows":18,"n_cols":17,"rows_kept":18,"cut":false,"hidden":true,"merged":[[12,8,12,11],[11,2,11,16],[2,2,2,4],[3,2,3,14],[9,2,9,11],[9,12,9,16]]}
[]
[]
[]
[null,null,"الغلاف",null,null,null,null,null,null,null,null,null,null,null,null,null,"المعطيات"]
[]
[null,null,1,null,2,null,3,null,4,null,5,null,6,null,7,null,"الايرادات"]
[]
[null,null,8,null,9,null,10,null,11,null,12,null,13,null,"التقرير",null,"النفقات"]
[]
[null,null,{"$f":"IFERROR(IF(Q16<>0,\"هناك فائض في الايرادات يقدر بـ\",\"\"),IF(Q16<Q17,\"المبلغ الموزع في جانب النفقات أكبر من المبلغ الاجمالي للايرادات المسموح بتوزيعها\",\"\"))","v":"هناك فائض في الايرادات يقدر بـ"},null,null,null,null,null,null,null,null,null,{"$f":"Q16","v":9128}]
[]
[null,null,{"$f":"IF(M10<>0,C18,\"\")","v":"راجع جدول التوزيع لمعرفة ماذا يمثل هذا الفائض"}]
[null,null,null,null,null,null,null,null,"فائض الايرادات"]
[]
[]
[null,null,null,null,null,null,null,null,null,null,null,null,null,null,null,null,{"$f":"النفقات!C185","v":9128}]
[]
[null,null,"راجع جدول التوزيع لمعرفة ماذا يمثل هذا الفائض"]

{"sheet":"0","index":5,"n_rows":44,"n_cols":9,"rows_kept":44,"cut":false,"hidden":false,"merged":[[0,1,0,2],[3,1,3,8],[5,1,5,8],[21,2,28,8],[30,2,31,4],[30,5,31,6],[9,3,9,5],[15,3,15,5],[17,3,17,5],[19,3,19,5]]}
[null,null,null,"المعطيات","الايرادات","النفقات","للطباعة"]
[]
[]
[null,"الجمهورية الجزائرية الديمقراطية الشعبية"]
[]
[null,"وزارة التربية الوطنية "]
[]
[null,null,"مديرية التربية :",{"$f":"معطيات!$D$3","v":"الشلف "}]
[]
[null,null,"إسم المؤسســــة :"]
[]
[null,null,"الرقم الميكانوغرافي:",{"$f":"معطيات!$D$9","v":"02413"}]
[]
[null,null,"رقم الحساب بالخزبنة:",{"$f":"معطيات!$D$11","v":"556/59"}]
[]
[null,null,"العنــــــــــوان :",{"$f":"معطيات!$D$7","v":"شارع الحرية الكرمية "}]
[]
[null,null,"الدائـــــــــــرة:",{"$f":"معطيات!$K$5","v":"الكريمية"}]
[]
[null,null,"البلديـــــــــة:",{"$f":"معطيات!$K$7","v":"الكريمية "}]
[]
[null,null," ميزانية التسيير "]
[]
[]
[]
[]
[]
[]
[]
[]
[null,null,"السنة المالية :",null,null,{"$f":"معطيات!$K$9","v":2018}]
[]
[]
[null,"-","القــــــــــــانون رقم :",{"$f":"معطيات!$D$15","v":"11-17"},"المؤرخ في :",{"$f":"معطيات!$F$15","v":"2017-12-27"},"المتضمن قانون المالية لسنــــــة :",null,{"$f":"$F$31","v":2018}]
[]
[null,"-","المرسوم التنفيذي رقم :",{"$f":"معطيات!$D$17","v":"18-22"},"المؤرخ في :",{"$f":"معطيات!$F$17","v":"2018-01-22"},"المتضمن توزيع الإعتمادات المخصصة "]
[]
[null,null,"للسيدة  وزيرة التربية الوطنية من ميزانية التسيير بموجب قانون المالية لسنـــــة ",null,null,null,{"$f":"$F$31","v":2018}]
[]
[null,"-","المرسوم التنفيذي رقم :","227  -  16","المؤرخ في :","31أوت 2016","المحدد للقانون الأساسي النموذجي للمتوسطة ,"]
[]
[]
[]
[null,"-","المرسوم التنفيذي رقم :","230  - 10","المؤرخ في :","02أكتوبر 2010","الذي يحدد الأحكام المتعلقة  بتنظيم الثانوية "]

{"sheet":"1","index":6,"n_rows":55,"n_cols":10,"rows_kept":55,"cut":false,"hidden":false,"merged":[[0,1,0,2],[2,1,2,11],[9,2,10,10],[5,2,5,10],[7,2,7,10],[54,2,54,9],[29,4,29,7],[31,4,31,7],[15,4,15,7],[17,4,17,7],[19,4,19,7],[21,4,21,7],[23,4,23,7],[25,4,25,7],[27,4,27,7],[33,4,33,7],[35,4,35,7],[40,4,40,7],[12,4,13,7],[12,2,13,3],[12,8,12,10],[13,8,13,10],[38,4,38,7],[36,4,36,7],[35,2,36,2],[35,9,36,9],[35,8,36,8]]}
[null,null,null,null,"المعطيات","الايرادات","النفقات","للطباعة"]
[]
[]
[]
[]
[null,null,"ميزانية التسيير"]
[]
[null,null,"التوزيع حسب الأبواب"]
[]
[null,null,"العنوان الأول : الإيــــــــــــــــرادات"]
[]
[]
[null,null,"الأبواب",null,"العناوين",null,null,null,"الإيرادات المالية"]
[null,null,null,null,null,null,null,null,"(دج)"]
[]
[null,null,1,null,"إعانات التسيير الممنوحة من طرف الدولة",null,null,null,null,{"$f":"'5'!M13","v":9456192}]
[]
[null,null,2,null,"الإعانات الممنوحة من الجماعات المحلية والمؤسسات والهيئات العمومية",null,null,null,null,{"$f":"'5'!M18","v":0}]
[]
[null,null,3,null,"الهبات والوصايا",null,null,null,null,{"$f":"'5'!M23","v":0}]
[]
[null,null,4,null,"إيرادات مرتبطة بنشاط المؤسسة",null,null,null,null,{"$f":"'5'!M28","v":46933}]
[]
[null,null,5,null,"إيرادات مختلفة",null,null,null,null,{"$f":"'5'!M33","v":0}]
[]
[null,null,6,null,"إيرادات ناتجة عن تسديد حقوق التسجيل",null,null,null,null,{"$f":"'5'!M38","v":6700}]
[]
[null,null,7,null,"إيرادات الإطعام",null,null,null,null,{"$f":"'5'!M49","v":70800}]
[]
[null,null,8,null,"المنحة المدرسية الخاصة لفائدة التلاميذ المعوزيتن",null,null,null,null,{"$f":"'5'!M54","v":0}]
[]
[null,null,9,null,"مساهمة الدولة في مجانية الكتاب المدرسي لفائدة التلاميذ المعوزين",null,null,null,null,{"$f":"'5'!M59","v":0}]
[]
[null,null,10,null,"الإعانة الخاصة بالنشاط التربوي الاستثنائي الواردة من الباب 42-12 المادة 01",null,null,null,null,{"$f":"'5'!M64","v":0}]
[]
[null,null,11,null,"ايرادات واردة من الباب 43-03 المعنون \"التحسين المستمر للمستوى المنظم على المستوى  الولائي  ، نفقات",null,null,null,null,{"$f":"'6'!M14","v":0}]
[null,null,null,null,"التكوين ما قبل الترقية  ونفقات الامتحانات والمسابقات المهنية\""]
[]
[null,null,12,null,"ايرادات واردة من الباب 43-60 المعنون \"تشجيع التكوين أثناء الخدمة وعن بعد لمعلمي التعليم الإبتدائي \"",null,null,null,null,{"$f":"'6'!M19","v":12375}]
[]
[null,null,null,null,"مجموع العنوان الأول",null,null,null,null,{"$f":"SUM(J16:J39)","v":9593000}]
[]
[]
[]
[]
[]
[]
[]
[]
[]
[]
[]
[]
[]
[null,null,1]

{"sheet":"2","index":7,"n_rows":56,"n_cols":10,"rows_kept":56,"cut":false,"hidden":false,"merged":[[0,1,0,2],[0,10,0,11],[7,2,8,3],[7,4,8,7],[7,8,7,10],[8,8,8,10],[2,2,3,10],[5,2,5,10],[22,4,22,7],[24,4,24,7],[26,4,26,7],[28,4,28,7],[10,4,10,7],[12,4,12,7],[14,4,14,7],[16,4,16,7],[18,4,18,7],[20,4,20,7],[30,4,30,7],[32,4,32,7],[40,4,40,7],[55,2,55,9],[34,4,34,7],[36,4,36,7],[38,4,38,7]]}
[null,null,null,null,"المعطيات","الايرادات","النفقات","للطباعة"]
[]
[null,null,"العنوان الثاني : النفقـــــــــــات"]
[]
[]
[null,null,"الفرع الأول : نفقات التسيير"]
[]
[null,null,"الأبواب",null,"العناوين",null,null,null,"الإيرادات المالية"]
[null,null,null,null,null,null,null,null,"(دج)"]
[]
[null,null,1,null,"تسديد المصاريف",null,null,null,null,{"$f":"'8'!M16","v":20000}]
[]
[null,null,2,null,"التكاليف الملحقة",null,null,null,null,{"$f":"'8'!M31","v":450000}]
[]
[null,null,3,null,"اللوازم",null,null,null,null,{"$f":"'8'!M46","v":75000}]
[]
[null,null,4,null,"الأدوات والأثاث",null,null,null,null,{"$f":"'9'!M17","v":59000}]
[]
[null,null,5,null,"اللوازم البيداغوجية",null,null,null,null,{"$f":"'9'!M26","v":156000}]
[]
[null,null,6,null,"الإطعام",null,null,null,null,{"$f":"'9'!M38","v":8384800}]
[]
[null,null,7,null,"الألبسة",null,null,null,null,{"$f":"'9'!M43","v":17000}]
[]
[null,null,8,null,"التأمين",null,null,null,null,{"$f":"'9'!M48","v":0}]
[]
[null,null,9,null,"نفقات التكوين",null,null,null,null,{"$f":"'9'!M59","v":12375}]
[]
[null,null,10,null,"حظيرة السيارات",null,null,null,null,{"$f":"'10'!M23","v":0}]
[]
[null,null,11,null,"نفقات تسيير وحدة الكشف والمتابعة (UDS)",null,null,null,null,{"$f":"'10'!M28","v":148000}]
[]
[null,null,12,null,"المكتبة المدرسية",null,null,null,null,{"$f":"'10'!M35","v":50600}]
[]
[null,null,13,null,"النفقات المتعلقة بالنشاط الثقافي والرياضي",null,null,null,null,{"$f":"'10'!M42","v":98100}]
[]
[null,null,14,null,"صيانة وتصليح المباني البيداغوجية والإدارية",null,null,null,null,{"$f":"'11'!M13","v":112997}]
[]
[null,null,15,null,"المصاريف القضائية والتعويضات المستحقة على عاتق الدولة",null,null,null,null,{"$f":"'11'!M18","v":0}]
[]
[null,null,null,null,"مجموع الفرع الأول",null,null,null,null,{"$f":"SUM(J11:J39)","v":9583872}]
[]
[]
[]
[]
[]
[]
[]
[]
[]
[]
[]
[]
[]
[]
[null,2,2]

{"sheet":"3","index":8,"n_rows":53,"n_cols":10,"rows_kept":53,"cut":false,"hidden":false,"merged":[[0,1,0,2],[8,4,8,7],[3,2,3,10],[5,2,6,3],[5,4,6,7],[5,8,5,10],[6,8,6,10],[18,4,18,7],[52,2,52,9],[10,4,10,7],[13,2,13,10],[15,2,16,3],[15,4,16,7],[15,8,15,10],[16,8,16,10],[20,4,20,7],[22,4,22,7],[24,4,24,7],[26,4,26,7]]}
[null,null,null,null,"المعطيات","الايرادات","النفقات","للطباعة"]
[]
[]
[null,null,"الفرع الثاني : نفقات تسيير أقسام رياضة ودراسة "]
[]
[null,null,"الأبواب",null,"العناوين",null,null,null,"الإيرادات المالية"]
[null,null,null,null,null,null,null,null,"(دج)"]
[]
[null,null,1,null,"نفقات تسيير أقسام رياضة ودراسة",null,null,null,null,{"$f":"'12'!M15","v":0}]
[]
[null,null,null,null,"مجموع الفرع الثاني",null,null,null,null,{"$f":"SUM(J9:J9)","v":0}]
[]
[]
[null,null,"الفرع الثالث : نفقات ذات طابع خاص"]
[]
[null,null,"الأبواب",null,"العناوين",null,null,null,"الإيرادات المالية"]
[null,null,null,null,null,null,null,null,"(دج)"]
[]
[null,null,1,null,"منحة التمدرس الخاصة لفائدة التلاميذ المعوزين",null,null,null,null,{"$f":"'12'!M30","v":0}]
[]
[null,null,2,null,"المنح المدرسية",null,null,null,null,{"$f":"'12'!M35","v":0}]
[]
[null,null,3,null,"نفقات الكتاب المدرسي",null,null,null,null,{"$f":"'12'!M42","v":0}]
[]
[null,null,4,null,"نفقات النشاط التربوي الإستثنائي",null,null,null,null,{"$f":"'12'!M49","v":0}]
[]
[null,null,null,null,"مجموع الفرع الثالث",null,null,null,null,{"$f":"SUM(J19:J25)","v":0}]
[]
[]
[]
[]
[]
[]
[]
[]
[]
[]
[]
[]
[]
[]
[]
[]
[]
[]
[]
[]
[]
[]
[]
[]
[]
[null,2,3]

{"sheet":"4","index":9,"n_rows":48,"n_cols":8,"rows_kept":48,"cut":false,"hidden":false,"merged":[[19,3,22,8],[25,3,28,8],[47,1,47,10],[23,3,24,8],[0,1,0,2]]}
[null,null,null,null,"المعطيات","الايرادات","النفقات","للطباعة"]
[]
[]
[]
[]
[]
[]
[]
[]
[]
[]
[]
[]
[]
[]
[]
[]
[]
[]
[null,null,null,"الإيـــــــــرادات"]
[]
[]
[]
[null,null,null,"التوزيع"]
[]
[null,null,null," حسب العناوين ، الأبواب والمواد"]
[]
[]
[]
[]
[]
[]
[]
[]
[]
[]
[]
[]
[]
[]
[]
[]
[]
[]
[]
[]
[]
[null,4]

{"sheet":"5","index":10,"n_rows":82,"n_cols":13,"rows_kept":82,"cut":false,"hidden":false,"merged":[[0,1,0,2],[0,11,0,12],[9,5,9,10],[10,5,10,10],[12,4,12,10],[4,2,5,13],[7,2,8,2],[7,3,8,3],[7,4,8,10],[7,11,7,13],[8,11,8,13],[10,2,12,2],[14,5,14,10],[15,5,15,10],[17,4,17,10],[30,2,32,2],[32,4,32,10],[15,2,17,2],[19,5,19,10],[20,2,22,2],[20,5,20,10],[22,4,22,10],[24,5,24,10],[25,2,27,2],[25,5,25,10],[27,4,27,10],[30,5,30,10],[29,5,29,10],[34,5,34,10],[35,2,37,2],[35,5,35,10],[37,4,37,10],[56,2,58,2],[56,5,56,10],[58,4,58,10],[39,5,39,10],[40,2,48,2],[40,5,40,10],[48,4,48,10],[42,5,42,10],[44,5,44,10],[46,5,46,10],[50,5,50,10],[51,2,53,2],[70,2,70,13],[51,5,51,10],[53,4,53,10],[55,5,55,10],[60,5,60,10],[61,2,63,2],[61,5,61,10],[63,4,63,10]]}
[null,null,null,null,null,null,"المعطيات","الايرادات","النفقات","للطباعة"]
[]
[]
[]
[null,null,"العنوان الأول : الإيــــــــــرادات"]
[]
[]
[null,null,"الأبواب","المواد","العناوين",null,null,null,null,null,null,"الإيرادات المالية"]
[null,null,null,null,null,null,null,null,null,null,null,"(دج)"]
[]
[null,null,1,1,null,"إعانات التسيير الممنوحة من طرف الدولة",null,null,null,null,null,null,{"$f":"الايرادات!J8","v":9456192}]
[]
[null,null,null,null,"مجموع الباب 1  ",null,null,null,null,null,null,null,{"$f":"M11","v":9456192}]
[]
[]
[null,null,2,1,null,"الإعانات الممنوحة من الجماعات المحلية والمؤسسات والهيئات العمومية",null,null,null,null,null,null,{"$f":"الايرادات!J23","v":0}]
[]
[null,null,null,null,"مجموع الباب 2  ",null,null,null,null,null,null,null,{"$f":"M16","v":0}]
[]
[]
[null,null,3,1,null,"الهبات والوصايا",null,null,null,null,null,null,{"$f":"الايرادات!J38","v":0}]
[]
[null,null,null,null,"مجموع الباب 3  ",null,null,null,null,null,null,null,{"$f":"M21","v":0}]
[]
[]
[null,null,4,1,null,"ايرادات مرتبطة بنشاط المؤسسة",null,null,null,null,null,null,{"$f":"الايرادات!J44","v":46933}]
[]
[null,null,null,null,"مجموع الباب 4  ",null,null,null,null,null,null,null,{"$f":"M26","v":46933}]
[]
[]
[null,null,5,1,null,"ايرادات مختلفة",null,null,null,null,null,null,{"$f":"الايرادات!J63","v":0}]
[]
[null,null,null,null,"مجموع الباب 5  ",null,null,null,null,null,null,null,{"$f":"M31","v":0}]
[]
[]
[null,null,6,1,null,"ايرادات ناتجة عن تسديد حقوق التسجيل",null,null,null,null,null,null,{"$f":"الايرادات!J73","v":6700}]
[]
[null,null,null,null,"مجموع الباب 6  ",null,null,null,null,null,null,null,{"$f":"M36","v":6700}]
[]
[]
[null,null,7,null,null,"ايراداد الإطعام"]
[]
[null,null,null,1,null,"مساهمة عائلات التلاميذ",null,null,null,null,null,null,{"$f":"الايرادات!J82","v":2000}]
[]
[null,null,null,2,null,"ايرادات ناتجة عن إطعام مستخدمي قطاع التربية",null,null,null,null,null,null,{"$f":"الايرادات!J83","v":60000}]
[]
[null,null,null,3,null,"ايرادات ناتجة عن إطعام المدعوين وآخرين",null,null,null,null,null,null,{"$f":"الايرادات!J84","v":8800}]
[]
[null,null,null,null,"مجموع الباب 7  ",null,null,null,null,null,null,null,{"$f":"SUM(M43:M47)","v":70800}]
[]
[]
[null,null,8,1,null,"المنحة المدرسية الخاصة لفائدة التلاميذ المعوزين",null,null,null,null,null,null,{"$f":"الايرادات!J87","v":0}]
[]
[null,null,null,null,"مجموع الباب 8  ",null,null,null,null,null,null,null,{"$f":"M52","v":0}]
[]
[]
[null,null,9,1,null,"مساهمة الدولة في مجانية الكتاب المدرسي لفائدة التلاميذ المعوزين",null,null,null,null,null,null,{"$f":"الايرادات!J93","v":0}]
[]
[null,null,null,null,"مجموع الباب 9  ",null,null,null,null,null,null,null,{"$f":"M57","v":0}]
[]
[]
[null,null,10,1,null,"الإعانة الخاصة بالنشاط التربوي الإستثنائي  الواردة من الباب 42-12/ المادة 1",null,null,null,null,null,null,{"$f":"الايرادات!J99","v":0}]
[]
[null,null,null,null,"مجموع الباب 10  ",null,null,null,null,null,null,null,{"$f":"M62","v":0}]
[]
[]
[]
[]
[]
[]
[null,2,5]
[]
[]
[]
[]
[]
[]
[]
[]
[]
[]
[null,null,null,null,null,null,null,null,null,null,null,null,{"$f":"M64+M59+M54+M49+M38+M33+M28+M23+M18+M13","v":9580625}]

{"sheet":"6","index":11,"n_rows":68,"n_cols":13,"rows_kept":68,"cut":false,"hidden":false,"merged":[[0,1,0,2],[0,11,0,12],[4,2,5,13],[7,2,8,2],[7,3,8,3],[7,4,8,10],[7,11,7,13],[8,11,8,13],[55,2,55,13],[21,2,22,10],[9,5,9,10],[10,2,13,2],[10,5,10,10],[13,4,13,10],[15,5,15,10],[16,2,18,2],[16,5,16,10],[18,4,18,10]]}
[null,null,null,null,null,null,"المعطيات","الايرادات","النفقات","للطباعة"]
[]
[]
[]
[null,null,"العنوان الأول : الإيــــــــــرادات"]
[]
[]
[null,null,"الأبواب","المواد","العناوين",null,null,null,null,null,null,"الإيرادات المالية"]
[null,null,null,null,null,null,null,null,null,null,null,"(دج)"]
[]
[null,null,11,1,null,"ايرادات واردة من الباب 43-03 المعنون \"التحسين المستمر للمستوى المنظم على المستوى  الولائي، نفقات",null,null,null,null,null,null,{"$f":"الايرادات!J105","v":0}]
[null,null,null,null,null,"التكوين ما قبل الترقية  ونفقات الامتحانات والمسابقات المهنية\""]
[]
[null,null,null,null,"مجموع الباب 11  ",null,null,null,null,null,null,null,{"$f":"M11","v":0}]
[]
[]
[null,null,12,1,null,"ايرادات واردة من الباب 43-60 المعنون \"تشجيع التكوين أثناء الخدمة وعن بعد لمعلمي التعليم الإبتدائي \"",null,null,null,null,null,null,{"$f":"الايرادات!J112","v":12375}]
[]
[null,null,null,null,"مجموع الباب 12  ",null,null,null,null,null,null,null,{"$f":"M17","v":12375}]
[]
[]
[null,null,"مجموع العنوان الأول : الإيرادات"]
[null,null,null,null,null,null,null,null,null,null,null,null,{"$f":"M68","v":9593000}]
[]
[]
[]
[]
[]
[]
[]
[]
[]
[]
[]
[]
[]
[]
[]
[]
[]
[]
[]
[]
[]
[]
[]
[]
[]
[]
[]
[]
[]
[]
[]
[]
[null,null,6]
[]
[]
[]
[]
[]
[]
[]
[]
[]
[]
[null,null,null,null,null,null,null,null,null,null,null,null,{"$f":"M14+M19","v":12375}]
[null,null,null,null,null,null,null,null,null,null,null,null,{"$f":"M67+'5'!M82","v":9593000}]

{"sheet":"7","index":12,"n_rows":48,"n_cols":8,"rows_kept":48,"cut":false,"hidden":false,"merged":[[18,3,21,8],[47,1,47,10],[24,3,26,8],[22,3,23,8],[0,1,0,2]]}
[null,null,null,null,"المعطيات","الايرادات","النفقات","للطباعة"]
[]
[]
[]
[]
[]
[]
[]
[]
[]
[]
[]
[]
[]
[]
[]
[]
[]
[null,null,null,"النفقـــــــــــــات"]
[]
[]
[]
[null,null,null,"التوزيع"]
[]
[null,null,null," حسب العناوين ، الأبواب والمواد"]
[]
[]
[]
[]
[]
[]
[]
[]
[]
[]
[]
[]
[]
[]
[]
[]
[]
[]
[]
[]
[]
[]
[null,7]

{"sheet":"8","index":13,"n_rows":70,"n_cols":13,"rows_kept":70,"cut":false,"hidden":false,"merged":[[0,1,0,2],[0,4,0,5],[0,13,0,14],[20,5,20,10],[30,4,30,10],[18,5,18,10],[15,4,15,10],[17,5,17,10],[26,5,26,10],[28,5,28,10],[2,2,3,13],[5,2,6,13],[10,5,10,10],[11,5,11,10],[13,5,13,10],[8,11,8,13],[9,11,9,13],[35,5,35,10],[45,4,45,10],[33,5,33,10],[60,2,60,13],[22,5,22,10],[24,5,24,10],[32,5,32,10],[37,5,37,10],[43,5,43,10],[39,5,39,10],[41,5,41,10],[8,2,9,2],[8,3,9,3],[8,4,9,10]]}
[null,null,null,null,null,null,"المعطيات","الايرادات","النفقات","للطباعة"]
[]
[null,null,"العنوان الثاني : النفقــــــــــــــــــات"]
[]
[]
[null,null,"الفرع الأول : نفقات التسيير"]
[]
[]
[null,null,"الأبواب","المواد","العناوين",null,null,null,null,null,null,"الإعتمادات المخصصة"]
[null,null,null,null,null,null,null,null,null,null,null,"(دج)"]
[null,null,1,null,null,"تسديد المصاريف "]
[null,null,null,1,null,"مصاريف المهام والتنقلات داخل التراب الوطني",null,null,null,null,null,null,{"$f":"النفقات!J10","v":0}]
[]
[null,null,null,2,null,"مصاريف الدراسة ، الخبرة ، المحامون والمحضرون القضائيون ",null,null,null,null,null,null,{"$f":"النفقات!J11","v":20000}]
[]
[null,null,null,null,"مجموع الباب 1  ",null,null,null,null,null,null,null,{"$f":"SUM(M12:M14)","v":20000}]
[]
[null,null,2,null,null,"التكاليف الملحقة"]
[null,null,null,1,null,"الماء ، الغاز ، الكهرباء ، الوقود  والطاقة الشمسية ",null,null,null,null,null,null,{"$f":"النفقات!J15+Q19","v":380000}]
[]
[null,null,null,2,null,"مصاريف البريد والمواصلات ( أتاوي الهاتف ، التلكس ، الأنترنت والرسوم المختلفة )",null,null,null,null,null,null,{"$f":"النفقات!J16","v":70000}]
[]
[null,null,null,3,null,"مصاريف الإعلان في الصحف",null,null,null,null,null,null,{"$f":"النفقات!J17","v":0}]
[]
[null,null,null,4,null,"تسديد مصاريف الإستهلاك المنزلي للكهرباء والغاز بنسبة 50 % للجنوب",null,null,null,null,null,null,{"$f":"النفقات!J18","v":0}]
[]
[null,null,null,5,null,"إقتناء وتركيب أدوات ولواحق الهاتف والربط بالانترنت",null,null,null,null,null,null,{"$f":"النفقات!J19","v":0}]
[]
[null,null,null,6,null,"تأمين المباني",null,null,null,null,null,null,{"$f":"النفقات!J20","v":0}]
[]
[null,null,null,null,"مجموع الباب 2  ",null,null,null,null,null,null,null,{"$f":"SUM(M19:M29)","v":450000}]
[]
[null,null,3,null,null,"اللوازم"]
[null,null,null,1,null,"إقتناء لوازم المكتب",null,null,null,null,null,null,{"$f":"النفقات!J24","v":10000}]
[]
[null,null,null,2,null,"مستهلكات وبرامج الإعلام الآلي",null,null,null,null,null,null,{"$f":"النفقات!J25","v":15000}]
[]
[null,null,null,3,null,"مصاريف النسخ والطبع",null,null,null,null,null,null,{"$f":"النفقات!J26","v":15000}]
[]
[null,null,null,4,null,"البياضة",null,null,null,null,null,null,{"$f":"النفقات!J27","v":0}]
[]
[null,null,null,5,null,"المواد الصيدلانية",null,null,null,null,null,null,{"$f":"النفقات!J28","v":0}]
[]
[null,null,null,6,null,"مواد التنظيف",null,null,null,null,null,null,{"$f":"النفقات!J29","v":35000}]
[]
[null,null,null,null,"مجموع الباب 3  ",null,null,null,null,null,null,null,{"$f":"SUM(M34:M44)","v":75000}]
[]
[]
[]
[]
[]
[]
[]
[]
[]
[]
[]
[]
[]
[]
[null,null,8]
[]
[]
[]
[]
[]
[]
[]
[]
[null,null,null,null,null,null,null,null,null,null,null,null,{"$f":"M16+M31+M46","v":545000}]

{"sheet":"9","index":14,"n_rows":66,"n_cols":17,"rows_kept":66,"cut":false,"hidden":false,"merged":[[0,1,0,2],[0,4,0,5],[0,13,0,14],[16,4,16,10],[40,5,40,10],[29,6,29,9],[34,7,34,8],[30,8,30,9],[32,8,32,9],[31,6,31,9],[6,5,6,10],[8,5,8,10],[10,5,10,10],[12,5,12,10],[14,5,14,10],[27,5,27,10],[42,4,42,10],[44,5,44,10],[45,5,45,10],[35,5,35,10],[37,4,37,10],[39,5,39,10],[28,5,28,10],[25,4,25,10],[33,5,33,10],[21,5,21,10],[23,5,23,10],[3,11,3,13],[4,11,4,13],[56,5,56,10],[58,4,58,10],[61,2,61,13],[47,4,47,10],[49,5,49,10],[50,5,50,10],[52,5,52,10],[54,5,54,10],[18,5,18,10],[19,5,19,10],[3,2,4,2],[3,3,4,3],[3,4,4,10],[5,5,5,10]]}
[null,null,null,null,null,null,"المعطيات","الايرادات","النفقات","للطباعة"]
[]
[]
[null,null,"الأبواب","المواد","العناوين",null,null,null,null,null,null,"الإعتمادات المخصصة"]
[null,null,null,null,null,null,null,null,null,null,null,"(دج)"]
[null,null,4,null,null,"الأدوات والأثاث"]
[null,null,null,1,null,"تجديد وصيانة أدوات وأثاث المكاتب والعتاد المدرسي",null,null,null,null,null,null,{"$f":"النفقات!J33","v":30000}]
[]
[null,null,null,2,null,"اقتناء و صيانة أجهزة الإعلام الآلي",null,null,null,null,null,null,{"$f":"النفقات!J34","v":0}]
[]
[null,null,null,3,null,"اقتناء وصيانة أدوات الوقاية والأمن",null,null,null,null,null,null,{"$f":"النفقات!J35","v":14000}]
[]
[null,null,null,4,null,"تجديد و صيانة لوازم ومستلزمات المطعم",null,null,null,null,null,null,{"$f":"النفقات!J36","v":10000}]
[]
[null,null,null,5,null,"اقتناء الستائر و الأعلام و لوازم الداخلية",null,null,null,null,null,null,{"$f":"النفقات!J37","v":5000}]
[]
[null,null,null,null,"مجموع الباب 4  ",null,null,null,null,null,null,null,{"$f":"SUM(M7:M15)","v":59000}]
[]
[null,null,5,null,null,"اللوازم البيداغوجيـــــــــة"]
[null,null,null,1,null,"لوازم  التجارب",null,null,null,null,null,null,{"$f":"النفقات!J41","v":30000}]
[]
[null,null,null,2,null,"مواد التجارب والكواشف ومواد المخابر",null,null,null,null,null,null,{"$f":"النفقات!J42","v":5000}]
[]
[null,null,null,3,null,"الإستنساخ ، الطباشير ، الأقلام ، الطلاسات وغيرها",null,null,null,null,null,null,{"$f":"النفقات!J43","v":121000}]
[]
[null,null,null,null,"مجموع الباب 5  ",null,null,null,null,null,null,null,{"$f":"SUM(M20:M24)","v":156000}]
[]
[null,null,6,null,null,"الإطعام"]
[null,null,null,1,null,"إطعام التلاميذ",null,null,null,null,null,null,{"$f":"النفقات!H52","v":8316000},null,null,null,{"$f":"معطيات!V137","v":1254528}]
[null,null,null,null,null,null,"داخليين  =  عدد التلاميذ x المبلغ السنوي"]
[null,null,null,null,null,null,{"$f":"النفقات!C50","v":0},{"$f":"النفقات!F50","v":24000},{"$f":"H31*G31","v":0}]
[null,null,null,null,null,null,"نصف الداخليين  =  عدد التلاميذ x المبلغ السنوي"]
[null,null,null,null,null,null,{"$f":"IF(معطيات!P32=0,النفقات!C53,معطيات!V139)","v":693},{"$f":"النفقات!F53","v":12000},{"$f":"H33*G33","v":8316000}]
[null,null,null,2,null,"إطعام المستخدمين ",null,null,null,null,null,null,{"$f":"الايرادات!J83","v":60000}]
[]
[null,null,null,3,null,"إطعام المدعوين و آخرون",null,null,null,null,null,null,{"$f":"الايرادات!J84","v":8800}]
[]
[null,null,null,null,"مجموع الباب 6  ",null,null,null,null,null,null,null,{"$f":"SUM(M29:M36)","v":8384800}]
[]
[null,null,7,null,null,"الألبسة"]
[null,null,null,1,null,"ملابس العمال المهنيين",null,null,null,null,null,null,{"$f":"النفقات!J61","v":17000}]
[]
[null,null,null,null,"مجموع الباب 7  ",null,null,null,null,null,null,null,{"$f":"M41","v":17000}]
[]
[null,null,8,null,null,"التأمين"]
[null,null,null,1,null,"تأمين التلاميذ أثناء الخرجات البيداغوجية",null,null,null,null,null,null,{"$f":"النفقات!J65","v":0}]
[]
[null,null,null,null,"مجموع الباب 8  ",null,null,null,null,null,null,null,{"$f":"M46","v":0}]
[]
[null,null,9,null,null,"نفقات التكوين "]
[null,null,null,1,null,"مصاريف التكوين والتحسين المستمرللمستوى المنظم على المستوى الولائي",null,null,null,null,null,null,{"$f":"النفقات!J69","v":0}]
[]
[null,null,null,2,null,"نفقات التكوين ما قبل الترقية",null,null,null,null,null,null,{"$f":"النفقات!J70","v":0}]
[]
[null,null,null,3,null,"نفقات الامتحانات و المسابقات المهنية",null,null,null,null,null,null,{"$f":"النفقات!J71","v":0}]
[]
[null,null,null,4,null,"تشجيع التكوين أثناء الخدمة و عن بعد لمعلمي التعليم الإبتدائي",null,null,null,null,null,null,{"$f":"النفقات!J72","v":12375}]
[]
[null,null,null,null,"مجموع الباب 9  ",null,null,null,null,null,null,null,{"$f":"SUM(M51:M57)","v":12375}]
[]
[]
[null,null,9]
[]
[]
[]
[null,null,null,null,null,null,null,null,null,null,null,null,{"$f":"M17+M26+M38+M43+M48+M59","v":8629175}]

{"sheet":"10","index":15,"n_rows":71,"n_cols":13,"rows_kept":71,"cut":false,"hidden":false,"merged":[[0,1,0,2],[0,4,0,5],[0,13,0,14],[5,5,5,10],[3,2,4,2],[3,3,4,3],[3,4,4,10],[3,11,3,13],[4,11,4,13],[6,5,6,10],[8,5,8,10],[10,5,10,10],[12,5,12,10],[14,5,14,10],[59,2,59,13],[16,5,16,10],[18,5,18,10],[21,5,21,10],[27,4,27,10],[30,5,30,10],[32,5,32,10],[34,4,34,10],[36,5,36,10],[37,5,37,10],[39,5,39,10],[41,4,41,10],[24,5,24,10],[25,5,25,10],[29,5,29,10],[22,4,22,10]]}
[null,null,null,null,null,null,"المعطيات","الايرادات","النفقات","للطباعة"]
[]
[]
[null,null,"الأبواب","المواد","العناوين",null,null,null,null,null,null,"الإعتمادات المخصصة"]
[null,null,null,null,null,null,null,null,null,null,null,"(دج)"]
[null,null,10,null,null,"حظيرة السيارات"]
[null,null,null,1,null,"اقتناء وتجديد السيارات",null,null,null,null,null,null,{"$f":"النفقات!J76","v":0}]
[]
[null,null,null,2,null,"الوقود والزيوت",null,null,null,null,null,null,{"$f":"النفقات!J77","v":0}]
[]
[null,null,null,3,null,"صيانة وتصليح و شحن السيارات وشراء قطع الغيار",null,null,null,null,null,null,{"$f":"النفقات!J78","v":0}]
[]
[null,null,null,4,null,"اقتناء العجلات",null,null,null,null,null,null,{"$f":"النفقات!J79","v":0}]
[]
[null,null,null,5,null,"مصاريف الترقيم والتعريف",null,null,null,null,null,null,{"$f":"النفقات!J80","v":0}]
[]
[null,null,null,6,null,"تأمين السيارات",null,null,null,null,null,null,{"$f":"النفقات!J81","v":0}]
[]
[null,null,null,7,null,"مصاريف اقتناء قسيمة السيارات",null,null,null,null,null,null,{"$f":"النفقات!J82","v":0}]
[]
[]
[null,null,null,8,null,"مصاريف المراقبة التقنية للسيارات",null,null,null,null,null,null,{"$f":"النفقات!J83","v":0}]
[null,null,null,null,"مجموع الباب 10  ",null,null,null,null,null,null,null,{"$f":"SUM(M7:M22)","v":0}]
[]
[null,null,11,null,null,"نفقات تسيير وحدات الكشف والمتابعة (UDS)"]
[null,null,null,1,null,"نفقات تسيير وحدات الكشف والمتابعة (UDS)",null,null,null,null,null,null,{"$f":"النفقات!J87","v":148000}]
[]
[null,null,null,null,"مجموع الباب 11  ",null,null,null,null,null,null,null,{"$f":"M26","v":148000}]
[]
[null,null,12,null,null,"المكتبة المدرسية"]
[null,null,null,1,null,"شراء كتب ومجلات تربوية",null,null,null,null,null,null,{"$f":"النفقات!J91","v":30000}]
[]
[null,null,null,2,null,"الإشتراك في المجلات والدوريات البيداغوجية",null,null,null,null,null,null,{"$f":"النفقات!J92","v":20600}]
[]
[null,null,null,null,"مجموع الباب 12  ",null,null,null,null,null,null,null,{"$f":"SUM(M31:M33)","v":50600}]
[]
[null,null,13,null,null,"النفقات المتعلقة بالنشاط الثقافي والرياضي"]
[null,null,null,1,null,"النفقات المتعلقة بالنشاط الثقافي ",null,null,null,null,null,null,{"$f":"النفقات!J96","v":63100}]
[]
[null,null,null,2,null,"النفقات المتعلقة بالنشاط الرياضي",null,null,null,null,null,null,{"$f":"النفقات!J97","v":35000}]
[]
[null,null,null,null,"مجموع الباب 13  ",null,null,null,null,null,null,null,{"$f":"SUM(M38:M40)","v":98100}]
[]
[]
[]
[]
[]
[]
[]
[]
[]
[]
[]
[]
[]
[]
[]
[]
[]
[null,null,10]
[]
[]
[]
[]
[]
[]
[]
[]
[]
[]
[null,null,null,null,null,null,null,null,null,null,null,null,{"$f":"M23+M28+M35+M42","v":296700}]

{"sheet":"11","index":16,"n_rows":68,"n_cols":13,"rows_kept":68,"cut":false,"hidden":false,"merged":[[15,5,15,10],[17,4,17,10],[0,1,0,2],[0,4,0,5],[0,13,0,14],[21,2,21,10],[55,2,55,13],[3,11,3,13],[4,11,4,13],[5,5,5,10],[6,5,6,10],[8,5,8,10],[3,2,4,2],[3,3,4,3],[3,4,4,10],[10,5,10,10],[12,4,12,10],[14,5,14,10]]}
[null,null,null,null,null,null,"المعطيات","الايرادات","النفقات","للطباعة"]
[]
[]
[null,null,"الأبواب","المواد","العناوين",null,null,null,null,null,null,"الإعتمادات المخصصة"]
[null,null,null,null,null,null,null,null,null,null,null,"(دج)"]
[null,null,14,null,null,"صيانة وتصليح المباني البيداغوجية والإدارية "]
[null,null,null,1,null,"صيانة وتصليح المباني البيدغوجية والإدارية ",null,null,null,null,null,null,{"$f":"النفقات!J102","v":0}]
[]
[null,null,null,2,null,"اقتناء مواد البناء، الترصيص، الخردوات، كهرباء، التدفئة التكييف وأدوات الصيانة الصغيرة",null,null,null,null,null,null,{"$f":"النفقات!J103","v":112997}]
[]
[null,null,null,3,null,"صيانة المساحات الخضراء والمسالك",null,null,null,null,null,null,{"$f":"النفقات!J104","v":0}]
[]
[null,null,null,null,"مجموع الباب 14  ",null,null,null,null,null,null,null,{"$f":"SUM(M7:M11)","v":112997}]
[]
[null,null,15,null,null,"المصاريف القضائية والتعويضات المستحقة على عاتق الدولة "]
[null,null,null,1,null,"المصاريف القضائية والتعويضات المستحقة على عاتق الدولة ",null,null,null,null,null,null,{"$f":"النفقات!J108","v":0}]
[]
[null,null,null,null,"مجموع الباب 15  ",null,null,null,null,null,null,null,{"$f":"M16","v":0}]
[]
[]
[]
[null,null,"مجموع الفرع الأول : نفقات التسيير",null,null,null,null,null,null,null,null,null,{"$f":"M68","v":9583872}]
[]
[]
[]
[]
[]
[]
[]
[]
[]
[]
[]
[]
[]
[]
[]
[]
[]
[]
[]
[]
[]
[]
[]
[]
[]
[]
[]
[]
[]
[]
[]
[]
[]
[null,null,11]
[]
[]
[]
[]
[]
[]
[]
[]
[]
[null,null,null,null,null,null,null,null,null,null,null,null,{"$f":"M13+M18","v":112997}]
[]
[null,null,null,null,null,null,null,null,null,null,null,null,{"$f":"M66+'10'!M71+'9'!M66+'8'!M70","v":9583872}]

{"sheet":"12","index":17,"n_rows":65,"n_cols":13,"rows_kept":65,"cut":false,"hidden":false,"merged":[[0,13,0,14],[6,11,6,13],[5,2,6,2],[5,3,6,3],[5,4,6,10],[7,5,7,10],[8,5,8,10],[10,5,10,10],[14,4,14,10],[0,1,0,2],[0,4,0,5],[48,4,48,10],[41,4,41,10],[31,5,31,10],[32,5,32,10],[46,5,46,10],[34,4,34,10],[36,5,36,10],[37,5,37,10],[39,5,39,10],[44,5,44,10],[43,5,43,10],[60,2,60,13],[2,2,3,13],[12,5,12,10],[18,2,18,10],[21,2,22,13],[26,5,26,10],[27,5,27,10],[29,4,29,10],[24,2,25,2],[24,3,25,3],[24,4,25,10],[24,11,24,13],[25,11,25,13],[52,2,52,10],[56,2,56,10],[5,11,5,13]]}
[null,null,null,null,null,null,"المعطيات","الايرادات","النفقات","للطباعة"]
[]
[null,null,"الفرع الثاني : نفقات تسيير أقسام الرياضة والدراسة"]
[]
[]
[null,null,"الأبواب","المواد","العناوين",null,null,null,null,null,null,"الإعتمادات المخصصة"]
[null,null,null,null,null,null,null,null,null,null,null,"(دج)"]
[null,null,1,null,null,"نفقات تسيير أقسام الرياضة والدراسة"]
[null,null,null,1,null,"مصاريف الإطعام",null,null,null,null,null,null,{"$f":"النفقات!J113","v":0}]
[]
[null,null,null,2,null,"نقل وتأمين التلاميذ",null,null,null,null,null,null,{"$f":"النفقات!J114","v":0}]
[]
[null,null,null,3,null,"إقتناء الأدوات واللوازم الرياضية والبياغوجية ",null,null,null,null,null,null,{"$f":"النفقات!J115","v":0}]
[]
[null,null,null,null,"مجموع الباب 1  ",null,null,null,null,null,null,null,{"$f":"SUM(M9:M13)","v":0}]
[]
[]
[]
[null,null,"مجموع الفرع الثاني : نفقات تسيير أقسام الرياضة والدراسة",null,null,null,null,null,null,null,null,null,{"$f":"M15","v":0}]
[]
[]
[null,null,"الفرع الثالث : نفقات ذات طابع خاص"]
[]
[]
[null,null,"الأبواب","المواد","العناوين",null,null,null,null,null,null,"الإعتمادات المخصصة"]
[null,null,null,null,null,null,null,null,null,null,null,"(دج)"]
[null,null,1,null,null,"منحة التمدرس الخاصة لفائدة التلاميذ المعوزين"]
[null,null,null,1,null,"منحة التمدرس الخاصة لفائدة التلاميذ المعوزين",null,null,null,null,null,null,{"$f":"النفقات!J118","v":0}]
[]
[null,null,null,null,"مجموع الباب 1  ",null,null,null,null,null,null,null,{"$f":"M28","v":0}]
[]
[null,null,2,null,null,"المنح المدرسية"]
[null,null,null,1,null,"منحة التجهيز لفائدة التلاميذ",null,null,null,null,null,null,{"$f":"النفقات!J121","v":0}]
[]
[null,null,null,null,"مجموع الباب 2  ",null,null,null,null,null,null,null,{"$f":"M33","v":0}]
[]
[null,null,3,null,null,"نفقات الكتاب المدرسي"]
[null,null,null,1,null,"تعويض النفقات المرتبطة بمجانية الكتاب المدرسي لفائدة التلاميذ المعوزين",null,null,null,null,null,null,{"$f":"النفقات!J124","v":0}]
[]
[null,null,null,2,null,"تسديد مستحقات الديوان الوطني للمطبوعات المدرسية من بيع الكتاب المدرسي",null,null,null,null,null,null,{"$f":"النفقات!J125","v":0}]
[]
[null,null,null,null,"مجموع الباب 3  ",null,null,null,null,null,null,null,{"$f":"SUM(M38:M40)","v":0}]
[]
[null,null,4,null,null,"نفقات النشاط التربوي الإستثنائي"]
[null,null,null,1,null,"الإطعام",null,null,null,null,null,null,{"$f":"النفقات!J128","v":0}]
[]
[null,null,null,2,null,"مصاريف الإقامة و التمدرس",null,null,null,null,null,null,{"$f":"النفقات!J129","v":0}]
[]
[null,null,null,null,"مجموع الباب 4  ",null,null,null,null,null,null,null,{"$f":"SUM(M45:M47)","v":0}]
[]
[]
[]
[null,null,"مجموع الفرع الثالث :  نفقات ذات طابع خاص",null,null,null,null,null,null,null,null,null,{"$f":"M49+M42+M35+M30","v":0}]
[]
[]
[]
[null,null,"مجموع العنوان الثاني :  النفقات",null,null,null,null,null,null,null,null,null,{"$f":"M53+M19+'11'!M22","v":9583872}]
[]
[]
[]
[null,null,12]
[]
[]
[]
[null,null,null,null,null,null,null,null,null,null,null,null,{"$f":"M19","v":0}]

{"sheet":"13","index":18,"n_rows":60,"n_cols":16,"rows_kept":60,"cut":false,"hidden":false,"merged":[[0,4,0,5],[0,1,0,2],[54,2,54,11],[21,2,21,8],[10,2,10,8],[16,7,16,8],[18,7,18,8],[25,6,25,7],[27,2,27,4],[27,6,27,7],[38,8,38,11],[38,4,38,6],[13,2,18,4],[30,8,30,11],[32,8,32,11],[3,2,4,12],[7,9,7,12],[8,9,8,12],[7,2,8,2],[7,3,8,8],[36,2,36,4],[36,9,36,10],[10,10,10,11],[14,10,14,11],[16,10,16,11],[18,10,18,11],[21,10,21,11],[25,8,25,10],[25,2,25,5]]}
[null,null,null,null,"المعطيات",null,"الايرادات","النفقات","للطباعة"]
[]
[]
[null,null,"حوصلة عامة للإيرادات والنفقات"]
[]
[]
[]
[null,null,null,null,null,null,null,null,null,"المبالغ"]
[null,null,null,null,null,null,null,null,null,"(دج)"]
[]
[null,null,"مجموع العنوان الأول : الإيرادات",null,null,null,null,null,null,null,{"$f":"'1'!J41","v":9593000}]
[]
[]
[null,null,"العنوان الثاني : النفقات"]
[null,null,null,null,null,null,"الفرع الأول :","نفقات التسيير",null,null,{"$f":"'11'!M22","v":9583872}]
[]
[null,null,null,null,null,null,"الفرع الثاني :","نفقات تسيير أقسام رياضة ودراسة",null,null,{"$f":"'12'!M19","v":0}]
[]
[null,null,null,null,null,null,"الفرع الثالث :","نفقات ذات طابع خاص",null,null,{"$f":"'12'!M53","v":0}]
[]
[]
[null,null,"مجموع العنوان الثاني: النفقات",null,null,null,null,null,null,null,{"$f":"SUM(K15:L19)","v":9583872}]
[]
[]
[]
[null,null,"لوحظ و صودق على ميزانية تسيير المؤسسة:",null,null,null,{"$f":"معطيات!D5","v":"متوسطة   شا فع العربي الكريمية "},null,"بعنوان السنة المالية :",null,null,{"$f":"معطيات!K9","v":2018}]
[]
[null,null,"حددت بمبلغ "]
[null,null,"-",null,"في الايرادات بمبلغ يقدر بـ :",null,null,{"$f":"K11","v":9593000},"تسعة ملايين وخمسة مائة وتسعة وخمسون الف دينار جزائري "]
[]
[null,null,"-",null,"في النفقات   بمبلغ يقدر بـ :",null,null,{"$f":"K22","v":9583872},"تسعة ملايين وخمسة مائة وتسعة واربعون الف وثمانية مائة  وإثنان وسبعون دينار جزائري "]
[]
[null,null,"-",null,"أي بفائض في الايرادات يقدر بـ :",null,null,{"$f":"L60","v":9128}]
[null,null,null,null,null,null,null,null,null,null,null,null,null,null,null,{"$f":"'فائض الايرادات'!G18","v":9128}]
[]
[null,null,null,null,null,null,null,null,null,null,null,null,null,null,null,{"$f":"H33","v":9128}]
[null,null,{"$f":"معطيات!K7","v":"الكريمية "},null,null,"في:",{"$f":"معطيات!K11","v":"2018-02-26"},null,{"$f":"معطيات!D3","v":"الشلف "},"في:"]
[]
[null,null,null,null,"مدير المؤسسة",null,null,null,"مدير التربية",null,null,null,null,null,null,{"$f":"P34-P36","v":0}]
[]
[]
[]
[]
[]
[]
[]
[]
[]
[]
[]
[]
[]
[]
[]
[null,null,13]
[]
[]
[]
[]
[null,null,null,null,null,null,null,null,"فائض الايرادات:",null,null,{"$f":"IF(K11>K22,K11-K22,0)","v":9128}]

{"sheet":"بطاقة االمراقبة ","index":19,"n_rows":87,"n_cols":16,"rows_kept":87,"cut":false,"hidden":false,"merged":[[10,4,10,7],[11,4,11,7],[12,4,12,7],[13,4,13,7],[9,2,14,2],[14,4,14,7],[4,4,4,7],[6,2,7,2],[6,4,6,7],[7,4,7,7],[9,4,9,7],[16,2,21,2],[16,4,16,7],[17,4,17,7],[18,4,18,7],[19,4,19,7],[20,4,20,7],[21,4,21,7],[23,4,23,7],[24,4,24,7],[25,4,25,7],[26,4,26,7],[23,2,27,2],[27,4,27,7],[33,4,33,7],[35,4,35,7],[37,4,37,7],[29,2,31,2],[29,4,29,7],[30,4,30,7],[31,4,31,7],[56,4,56,7],[58,2,59,2],[58,4,58,7],[59,4,59,7],[49,4,49,7],[50,4,50,7],[51,4,51,7],[53,4,53,7],[44,2,51,2],[44,4,44,7],[45,4,45,7],[46,4,46,7],[47,4,47,7],[48,4,48,7],[40,4,40,7],[41,4,41,7],[42,4,42,7],[73,4,73,7],[2,2,2,10],[65,4,65,7],[68,2,70,2],[68,4,68,7],[69,4,69,7],[70,4,70,7],[61,2,63,2],[61,4,61,7],[62,4,62,7],[63,4,63,7],[55,2,56,2],[55,4,55,7],[86,2,86,7],[1,2,1,5],[79,4,79,7],[80,4,80,7],[82,2,82,10],[83,4,83,7],[84,4,84,7],[79,2,80,2],[83,2,84,2],[67,2,67,10],[72,2,72,10],[75,2,75,10],[76,4,76,7],[78,2,78,10],[39,2,42,2],[39,4,39,7]]}
[]
[null,null,{"$f":"معطيات!D5","v":"متوسطة   شا فع العربي الكريمية "},null,null,null,null,null,null,"السنة المالية :",{"$f":"معطيات!K9","v":2018}]
[null,null,"بطاقة متابعة تنفيذ الميزانية",null,null,null,null,null,null,null,null,null,null,"المعطيات"]
[]
[null,null,"الباب","المادة","العنــــــــــــــــــــــــــــــاوين",null,null,null,"الاعتماد المخصص","المصاريف المحققة","الرصيد",null,null,{"$f":"IF(I7<>0,1,0)","v":0}]
[null,null,null,null,null,null,null,null,null,null,null,null,null,1]
[null,null,1,1,{"$f":"النفقات!E10","v":"مصاريف المهام والتنقلات داخل التراب الوطني والاستقبالات والخرجات البيداغوجية "},null,null,null,{"$f":"النفقات!J10","v":0},null,{"$f":"I7-J7","v":0},null,null,{"$f":"IF(I7<>0,1,0)","v":0},{"$f":"I7","v":0},{"$f":"J7","v":0}]
[null,null,null,2,{"$f":"النفقات!E11","v":"مصاريف الدراسة ، الخبرة ، المحامون والمحضرون القضائيون "},null,null,null,{"$f":"النفقات!J11","v":20000},null,{"$f":"I8-J8","v":20000},null,null,1,{"$f":"I8","v":20000},{"$f":"J8","v":0}]
[null,null,null,null,null,null,null,null,null,null,null,null,null,0,0,0]
[null,null,2,1,{"$f":"النفقات!E15","v":"الماء ، الغاز ، الكهرباء ، الوقود  والطاقة الشمسية "},null,null,null,{"$f":"النفقات!J15","v":380000},258477.43,{"$f":"I10-J10","v":121522.57},null,null,1,380000,258477.43]
[null,null,null,2,{"$f":"النفقات!E16","v":"مصاريف البريد والمواصلات ( أتاوي الهاتف ، التلكس ، الأنترنت والرسوم المختلفة )"},null,null,null,{"$f":"النفقات!J16","v":70000},49812.37,20187.629999999997,null,null,1,70000,49812.37]
[null,null,null,3,{"$f":"النفقات!E17","v":"مصاريف الإعلان في الصحف"},null,null,null,{"$f":"النفقات!J17","v":0},null,0,null,null,0,0,0]
[null,null,null,4,{"$f":"النفقات!E18","v":"تسديد مصاريف الإستهلاك المنزلي للكهرباء والغاز بنسبة 50 % للجنوب"},null,null,null,{"$f":"النفقات!J18","v":0},null,0,null,null,0,0,0]
[null,null,null,5,{"$f":"النفقات!E19","v":"إقتناء وتركيب أدوات ولواحق الهاتف والربط بالانترنت"},null,null,null,{"$f":"النفقات!J19","v":0},null,0,null,null,0,0,0]
[null,null,null,6,{"$f":"النفقات!E20","v":"تأمين المباني"},null,null,null,{"$f":"النفقات!J20","v":0},null,0,null,null,0,0,0]
[null,null,null,null,null,null,null,null,null,null,null,null,null,0,0,0]
[null,null,3,1,{"$f":"النفقات!E24","v":"إقتناء لوازم المكتب"},null,null,null,{"$f":"النفقات!J24","v":10000},null,{"$f":"I17-J17","v":10000},null,null,1,10000,0]
[null,null,null,2,{"$f":"النفقات!E25","v":"مستهلكات وبرامج الإعلام الآلي"},null,null,null,{"$f":"النفقات!J25","v":15000},14280,{"$f":"I18-J18","v":720},null,null,1,15000,14280]
[null,null,null,3,{"$f":"النفقات!E26","v":"مصاريف النسخ والطبع"},null,null,null,{"$f":"النفقات!J26","v":15000},null,{"$f":"I19-J19","v":15000},null,null,1,15000,0]
[null,null,null,4,{"$f":"النفقات!E27","v":"البياضة"},null,null,null,{"$f":"النفقات!J27","v":0},null,{"$f":"I20-J20","v":0},null,null,0,{"$f":"I20","v":0},0]
[null,null,null,5,{"$f":"النفقات!E28","v":"المواد الصيدلانية"},null,null,null,{"$f":"النفقات!J28","v":0},null,0,null,null,0,0,0]
[null,null,null,6,{"$f":"النفقات!E29","v":"مواد التنظيف"},null,null,null,{"$f":"النفقات!J29","v":35000},null,35000,null,null,1,35000,0]
[null,null,null,null,null,null,null,null,null,null,null,null,null,1,0,0]
[null,null,4,1,{"$f":"النفقات!E33","v":"تجديد وصيانة أدوات وأثاث المكاتب والعتاد المدرسي والتجهيز العلمي والبيداغوجي"},null,null,null,{"$f":"النفقات!J33","v":30000},6800,{"$f":"I24-J24","v":23200},null,null,1,30000,6800]
[null,null,null,2,{"$f":"النفقات!E34","v":"اقتناء و صيانة أجهزة الإعلام الآلي"},null,null,null,{"$f":"النفقات!J34","v":0},null,{"$f":"I25-J25","v":0},null,null,0,0,0]
[null,null,null,3,{"$f":"النفقات!E35","v":"اقتناء وصيانة أدوات الوقاية والأمن"},null,null,null,{"$f":"النفقات!J35","v":14000},8925,5075,null,null,1,14000,8925]
[null,null,null,4,{"$f":"النفقات!E36","v":"تجديد و صيانة لوازم ومستلزمات المطعم والمطبخ "},null,null,null,{"$f":"النفقات!J36","v":10000},null,10000,null,null,1,10000,0]
[null,null,null,5,{"$f":"النفقات!E37","v":"اقتناء الستائر و الأعلام و لوازم الداخلية  واللوحات الرسمية ولوحات التوجيه"},null,null,null,{"$f":"النفقات!J37","v":5000},2850,2150,null,null,1,5000,2850]
[null,null,null,null,null,null,null,null,null,null,null,null,null,1,0,0]
[null,null,5,1,{"$f":"النفقات!E41","v":"لوازم التجارب"},null,null,null,{"$f":"النفقات!J41","v":30000},null,{"$f":"I30-J30","v":30000},null,null,{"$f":"IF(I30<>0,1,0)","v":1},30000,0]
[null,null,null,2,{"$f":"النفقات!E42","v":"مواد التجارب والكواشف ومواد المخابر"},null,null,null,{"$f":"النفقات!J42","v":5000},null,{"$f":"I31-J31","v":5000},null,null,1,5000,0]
[null,null,null,3,{"$f":"النفقات!E43","v":"الإستنساخ ، الطباشير ، الأقلام ، الطلاسات وغيرها "},null,null,null,{"$f":"النفقات!J43","v":121000},null,121000,null,null,1,{"$f":"I32","v":121000},0]
[null,null,null,null,null,null,null,null,null,null,null,null,null,1,0,0]
[null,null,6,1,{"$f":"النفقات!E47","v":"الإطعام"},null,null,null,{"$f":"النفقات!J47","v":8384800},4284507.5,{"$f":"I34-J34","v":4100292.5},null,null,1,8384800,4284507.5]
[null,null,null,null,null,null,null,null,null,null,null,null,null,1,0,0]
[null,null,7,1,{"$f":"النفقات!E61","v":"ملابس العمال المهنيين (المآزر ، بذلات العمال ، أحذية الوقاية ، قفازات ، بزات أعوان الأمن  والوقاية )"},null,null,null,{"$f":"النفقات!J61","v":17000},null,{"$f":"I36-J36","v":17000},null,null,1,17000,0]
[null,null,null,null,null,null,null,null,null,null,null,null,null,1,0,0]
[null,null,8,1,{"$f":"النفقات!E65","v":"تأمين التلاميذ أثناء الخرجات البيداغوجية"},null,null,null,{"$f":"النفقات!J65","v":0},null,{"$f":"I36-J36","v":17000},null,null,0,0,0]
[null,null,null,null,null,null,null,null,null,null,null,null,null,1,0,0]
[null,null,9,1,{"$f":"النفقات!E69","v":"مصاريف التكوين والتحسين المستمرللمستوى المنظم على المستوى الولائي"},null,null,null,{"$f":"النفقات!J69","v":0},null,{"$f":"I40-J40","v":0},null,null,{"$f":"IF(I40<>0,1,0)","v":0},0,0]
[null,null,null,2,{"$f":"النفقات!E70","v":"نفقات التكوين ما قبل الترقية"},null,null,null,{"$f":"النفقات!J70","v":0},null,{"$f":"I41-J41","v":0},null,null,0,0,0]
[null,null,null,3,{"$f":"النفقات!E71","v":"نفقات الامتحانات و المسابقات المهنية"},null,null,null,{"$f":"النفقات!J71","v":0},null,0,null,null,0,0,0]
[null,null,null,4,{"$f":"النفقات!E72","v":"تشجيع التكوين أثناء الخدمة و عن بعد لمعلمي التعليم الإبتدائي"},null,null,null,{"$f":"النفقات!J72","v":12375},null,12375,null,null,1,12375,0]
[null,null,null,null,null,null,null,null,null,null,null,null,null,1,0,0]
[null,null,10,1,{"$f":"النفقات!E76","v":"إقتناء وتجديد السيارات"},null,null,null,{"$f":"النفقات!J76","v":0},null,{"$f":"I45-J45","v":0},null,null,0,{"$f":"I45","v":0},0]
[null,null,null,2,{"$f":"النفقات!E77","v":"الوقود والزيوت"},null,null,null,{"$f":"النفقات!J77","v":0},null,{"$f":"I46-J46","v":0},null,null,0,0,0]
[null,null,null,3,{"$f":"النفقات!E78","v":"صيانة وإصلاح السيارات وشراء قطع الغيار"},null,null,null,{"$f":"النفقات!J78","v":0},null,0,null,null,0,{"$f":"I47","v":0},0]
[null,null,null,4,{"$f":"النفقات!E79","v":"اقتناء العجلات"},null,null,null,{"$f":"النفقات!J79","v":0},null,0,null,null,0,0,0]
[null,null,null,5,{"$f":"النفقات!E80","v":"مصاريف الترقيم والتعريف"},null,null,null,{"$f":"النفقات!J80","v":0},null,0,null,null,{"$f":"IF(I49<>0,1,0)","v":0},0,0]
[null,null,null,6,{"$f":"النفقات!E81","v":"تأمين السيارات"},null,null,null,{"$f":"النفقات!J81","v":0},null,0,null,null,0,0,0]
[null,null,null,7,{"$f":"النفقات!E82","v":"مصاريف اقتناء قسيمة السيارات"},null,null,null,{"$f":"النفقات!J82","v":0},null,0,null,null,0,0,0]
[null,null,null,8,{"$f":"النفقات!E83","v":"مصاريف المراقبة التقنية للسيارات"},null,null,null,{"$f":"النفقات!J83","v":0},null,0,null,null,0,0,0]
[null,null,null,null,null,null,null,null,null,null,null,null,null,1,0,0]
[null,null,11,1,{"$f":"النفقات!E87","v":"نفقات تسيير وحدة الكشف والمتابعة (UDS)"},null,null,null,{"$f":"النفقات!J87","v":148000},null,{"$f":"I54-J54","v":148000},null,null,1,148000,0]
[null,null,null,null,null,null,null,null,null,null,null,null,null,1,0,0]
[null,null,12,1,{"$f":"النفقات!E91","v":"شراء كتب ومجلات تربوية"},null,null,null,{"$f":"النفقات!J91","v":30000},null,{"$f":"I56-J56","v":30000},null,null,1,30000,0]
[null,null,null,2,{"$f":"النفقات!E92","v":"الإشتراك في المجلات والدوريات البيداغوجية"},null,null,null,{"$f":"النفقات!J92","v":20600},20513.599999999999,{"$f":"I57-J57","v":86.400000000001455},null,null,1,20600,20513.599999999999]
[null,null,null,null,null,null,null,null,null,null,null,null,null,1,0,0]
[null,null,13,1,{"$f":"النفقات!E96","v":"النفقات المتعلقة بالنشاط الثقافي"},null,null,null,{"$f":"النفقات!J96","v":63100},61050,{"$f":"I59-J59","v":2050},null,null,1,63100,61050]
[null,null,null,2,{"$f":"النفقات!E97","v":"النفقات المتعلقة بالنشاط الرياضي"},null,null,null,{"$f":"النفقات!J97","v":35000},null,{"$f":"I60-J60","v":35000},null,null,1,{"$f":"I60","v":35000},0]
[null,null,null,null,null,null,null,null,null,null,null,null,null,1,0,0]
[null,null,14,1,{"$f":"النفقات!E102","v":"صيانة المباني البيداغوجية والإدارية"},null,null,null,{"$f":"النفقات!J102","v":0},null,{"$f":"I62-J62","v":0},null,null,0,0,0]
[null,null,null,2,{"$f":"النفقات!E103","v":"اقتناء مواد البناء، الترصيص، الخردوات، كهرباء، التدفئة التكييف وأدوات الصيانة الصغيرة"},null,null,null,{"$f":"النفقات!J103","v":112997},null,{"$f":"I63-J63","v":112997},null,null,{"$f":"IF(I63<>0,1,0)","v":1},112997,0]
[null,null,null,3,{"$f":"النفقات!E104","v":"صيانة المساحات الخضراء والمسالك"},null,null,null,{"$f":"النفقات!J104","v":0},null,{"$f":"I64-J64","v":0},null,null,0,{"$f":"I64","v":0},0]
[null,null,null,null,null,null,null,null,null,null,null,null,null,1,0,0]
[null,null,15,1,{"$f":"النفقات!E108","v":"المصاريف القضائية والتعويضات المستحقة على عاتق الدولة "},null,null,null,{"$f":"النفقات!J108","v":0},null,{"$f":"I66-J66","v":0},null,null,0,0,0]
[null,null,null,null,null,null,null,null,null,null,null,null,null,1,0,0]
[null,null,"نفقات تسيير أقسام الرياضة والدراسة",null,null,null,null,null,null,null,null,null,null,0,0,0]
[null,null,1,1,{"$f":"النفقات!E113","v":"مصاريف الإطعام"},null,null,null,{"$f":"النفقات!J113","v":0},null,{"$f":"I69-J69","v":0},null,null,0,0,0]
[null,null,null,2,{"$f":"النفقات!E114","v":"نقل وتأمين التلاميذ"},null,null,null,{"$f":"النفقات!J114","v":0},null,{"$f":"I70-J70","v":0},null,null,0,0,0]
[null,null,null,3,{"$f":"النفقات!E115","v":"الأدوات واللوازم الرياضية والبيداغوجية"},null,null,null,{"$f":"النفقات!J115","v":0},null,0,null,null,0,0,0]
[null,null,null,null,null,null,null,null,null,null,null,null,null,1,{"$f":"I72","v":0},{"$f":"J72","v":0}]
[null,null,"منحة التمدرس الخاصة",null,null,null,null,null,null,null,null,null,null,{"$f":"IF(I73<>0,1,0)","v":0},0,0]
[null,null,1,1,{"$f":"النفقات!E118","v":"منحة التمدرس الخاصة للتلاميذ المعوزين"},null,null,null,{"$f":"النفقات!J118","v":0},null,{"$f":"I74-J74","v":0},null,null,0,0,0]
[null,null,null,null,null,null,null,null,null,null,null,null,null,1,0,0]
[null,null,"المنح المدرسية",null,null,null,null,null,null,null,null,null,null,{"$f":"IF(I76<>0,1,0)","v":0},0,0]
[null,null,2,1,{"$f":"النفقات!E121","v":"منحة التجهيز لفائدة التلاميذ"},null,null,null,{"$f":"النفقات!J121","v":0},null,{"$f":"I77-J77","v":0},null,null,0,{"$f":"I77","v":0},0]
[null,null,null,null,null,null,null,null,null,null,null,null,null,1,{"$f":"I78","v":0},0]
[null,null,"نفقات الكتاب المدرسي",null,null,null,null,null,null,null,null,null,null,0,0,0]
[null,null,3,1,{"$f":"النفقات!E124","v":"تعويض النفقات المرتبطة بمجانية الكتاب المدرسي لفائدة التلاميذ المعوزين"},null,null,null,{"$f":"النفقات!J124","v":0},null,{"$f":"I80-J80","v":0},null,null,0,0,0]
[null,null,null,2,{"$f":"النفقات!E125","v":"تسديد مستحقات الديوان الوطني للمطبوعات المدرسية من بيع الكتاب المدرسي والوثائق الشبه مدرسية "},null,null,null,{"$f":"النفقات!J125","v":0},null,{"$f":"I81-J81","v":0},null,null,0,0,0]
[null,null,null,null,null,null,null,null,null,null,null,null,null,1,0,0]
[null,null,"نفقات النشاط التربوي الإستثنائي   (هذا الباب خاص للتكفل بإطعام وايواء التلاميذ الصحراويين)",null,null,null,null,null,null,null,null,null,null,1,0,0]
[null,null,4,1,{"$f":"النفقات!E128","v":"الإطعام"},null,null,null,{"$f":"النفقات!J128","v":0},null,{"$f":"I84-J84","v":0},null,null,0,0,0]
[null,null,null,2,{"$f":"النفقات!E129","v":"مصاريف الإقامة و التمدرس"},null,null,null,{"$f":"النفقات!J129","v":0},null,{"$f":"I85-J85","v":0},null,null,0,0,0]
[null,null,null,null,null,null,null,null,null,null,null,null,null,0]
[null,null,"المجموع:",null,null,null,null,null,{"$f":"O87","v":9583872},{"$f":"P87","v":4707215.8999999994},{"$f":"I87-J87","v":4876656.1000000006},null,null,{"$f":"IF(I87<>0,1,0)","v":1},{"$f":"SUM(O7:O85)","v":9583872},{"$f":"SUM(P7:P85)","v":4707215.8999999994}]

{"sheet":"التقرير","index":20,"n_rows":46,"n_cols":10,"rows_kept":46,"cut":false,"hidden":false,"merged":[[45,6,45,8],[5,1,5,3],[4,2,4,3],[5,7,5,9],[13,2,13,8],[18,3,18,4],[19,3,19,4],[14,1,14,9],[15,1,15,9],[44,6,44,9],[32,1,32,4],[26,3,26,4],[27,3,27,4],[31,1,31,2],[31,3,31,4],[29,1,29,2],[29,7,29,8],[23,1,23,2],[23,3,23,4],[28,1,28,2],[28,3,28,4],[24,3,24,4],[25,3,25,4],[29,3,29,4],[6,6,6,9],[27,7,27,8],[21,1,21,2],[21,3,21,4],[22,1,22,2],[22,3,22,4],[24,7,24,8],[25,7,25,8],[26,7,26,8],[0,4,0,5],[20,1,20,2],[20,3,20,4],[7,6,7,8],[18,7,18,8],[19,7,19,8],[20,7,20,8],[10,2,10,6],[1,1,1,9],[2,1,2,4],[3,1,3,4],[8,6,8,9],[9,6,9,9],[11,2,11,8],[3,6,3,7],[4,6,4,9],[30,1,30,2],[30,3,30,4],[30,7,30,8],[16,1,16,4],[18,1,18,2],[19,1,19,2],[24,1,24,2],[25,1,25,2],[26,1,26,2],[27,1,27,2],[17,6,17,9],[16,6,16,9],[21,7,21,8],[22,7,22,8],[23,7,23,8],[28,7,28,8],[35,1,35,4],[36,1,36,4],[31,7,31,8],[32,7,32,8],[33,7,33,8],[36,7,36,8],[35,6,35,9],[33,1,33,4],[34,1,34,4],[42,7,42,8],[43,7,43,8],[37,6,37,9],[34,7,34,8],[38,7,38,8],[39,7,39,8],[40,7,40,8],[41,7,41,8]]}
[null,null,null,"المعطيات","الايرادات",null,"النفقات","للطباعة"]
[null,"الجمهورية الجزائرية الديمقراطية الشعبية"]
[null,"مديرية التربية لولاية باتنة"]
[null,{"$f":"معطيات!D5","v":"متوسطة   شا فع العربي الكريمية "},null,null,null,null,{"$f":"معطيات!K7","v":"الكريمية "},null,"في:",{"$f":"معطيات!K11","v":"2018-02-26"}]
[null,"رقم الهاتف : ",{"$f":"معطيات!K3","v":"027708500"},null,null,null,"من "]
[null,"رقــــــــــــــــــم الارســال : /.............../ ",null,null,{"$f":"معطيات!K9","v":2018},null,"مدير",{"$f":"B4","v":"متوسطة   شا فع العربي الكريمية "}]
[null,null,null,null,null,null,"الى "]
[null,null,null,null,null,null,"السيد : مدير التربية لولاية",null,null,{"$f":"معطيات!D3","v":"الشلف "}]
[null,null,null,null,null,null,"                                         مصلحة المالية والوسائل"]
[null,null,null,null,null,null,"                           مكتب مراقبة التسيير المالي للمؤسسات"]
[null,"الموضوع :","تقرير رئيس المؤســـــسة حول ميزانية التسيير لسنة ",null,null,null,null,{"$f":"معطيات!K9","v":2018}]
[null,"المرجع :"," مراسلة السيد مدير التربية رقم : 2017/2.4/210 بتاريخ 2017/03/08"]
[]
[null,null,"بناء على المرجع المذكور أعلاه المتعلق بتوزيع مبالغ الاعتمادات المالية لميزانية التسيير لسنة ",null,null,null,null,null,null,{"$f":"E6","v":2018}]
[null,"ونظرا لاجتماع مجلس التربية والتسيير لدراسة الميزانية  "]
[null,"حصرنا موازنة التقديرات  كالآتي :"]
[null,"الايرادات ",null,null,null,null,"النفقات"]
[null,null,null,null,null,null,"الفرع الأول : نفقات التسيير"]
[null,"الباب",null,"المبلغ",null,null,"الباب","المبلغ"]
[null,-1,null,{"$f":"الايرادات!J8","v":9456192},null,null,-1,{"$f":"'2'!J11","v":20000}]
[null,-2,-2,{"$f":"الايرادات!J23","v":0},null,null,-2,{"$f":"'2'!J13","v":450000}]
[null,-3,-3,{"$f":"الايرادات!J38","v":0},null,null,-3,{"$f":"'2'!J15","v":75000}]
[null,-4,-4,{"$f":"الايرادات!J44","v":46933},null,null,-4,{"$f":"'2'!J17","v":59000}]
[null,-5,-5,{"$f":"الايرادات!J63","v":0},null,null,-5,{"$f":"'2'!J19","v":156000}]
[null,-6,-6,{"$f":"الايرادات!J73","v":6700},null,null,-6,{"$f":"'2'!J21","v":8384800}]
[null,-7,-7,{"$f":"الايرادات!J79","v":70800},null,null,-7,{"$f":"'2'!J23","v":17000}]
[null,-8,-8,{"$f":"الايرادات!J87","v":0},null,null,-8,{"$f":"'2'!J25","v":0}]
[null,-9,-9,{"$f":"الايرادات!J93","v":0},null,null,-9,{"$f":"'2'!J27","v":12375}]
[null,-10,-10,{"$f":"الايرادات!J99","v":0},null,null,-10,{"$f":"'2'!J29","v":0}]
[null,-11,-11,{"$f":"الايرادات!J105","v":0},null,null,-11,{"$f":"'2'!J31","v":148000}]
[null,-12,-12,{"$f":"الايرادات!J112","v":12375},null,null,-12,{"$f":"'2'!J33","v":50600}]
[null,"المجموع:",null,{"$f":"SUM(D20:E31)","v":9593000},null,null,-13,{"$f":"'2'!J35","v":98100}]
[null,null,null,null,null,null,-14,{"$f":"'2'!J37","v":112997}]
[null,"فائض الايرادات ",null,null,null,null,-15,{"$f":"'2'!J39","v":0}]
[null,"قدر فائض الايرادات بــ :",null,null,null,null,"المجموع:",{"$f":"SUM(H20:I34)","v":9583872}]
[null,{"$f":"'13'!H33","v":9128},null,null,null,null,"الفرع الثاني :  نفقات تسيير أقسام رياضة ودراسة "]
[null,";ويمثل فارق  المنح الوطنية ",null,null,null,null,-1,{"$f":"'3'!J11","v":0}]
[null,null,null,null,null,null,"الفرع الثالث :نفقات ذات طابع خاص"]
[null,null,null,null,null,null,-1,{"$f":"'3'!J19","v":0}]
[null,null,null,null,null,null,-2,{"$f":"'3'!J21","v":0}]
[null,null,null,null,null,null,-3,{"$f":"'3'!J23","v":0}]
[null,null,null,null,null,null,-4,{"$f":"'3'!J25","v":0}]
[null,null,null,null,null,null,"المجموع:",{"$f":"SUM(H39:I42)","v":0}]
[null,null,null,null,null,null,"المجموع الاجمالي:",{"$f":"H43+H37+H35","v":9583872}]
[]
[null,null,null,null,null,null,"رئيس المؤسسة "]

{"sheet":"توضيح","index":21,"n_rows":46,"n_cols":19,"rows_kept":46,"cut":false,"hidden":true,"merged":[[1,8,1,10],[1,2,1,3],[38,2,40,2],[9,4,9,17],[22,2,31,2],[32,2,36,2],[5,4,5,17],[6,5,6,16],[34,4,34,17],[35,4,35,17],[36,4,36,17],[33,4,33,17],[32,4,32,17],[18,4,18,17],[20,4,20,17],[21,4,21,17],[5,18,6,18],[7,2,16,2],[17,2,20,2],[5,2,5,3],[3,2,4,18]]}
[]
[null,null,null,null,null,null,null,null,"المعطيات"]
[]
[null,null,"توضيح"]
[]
[null,null,"الايرادات",null,"النفقات",null,null,null,null,null,null,null,null,null,null,null,null,null,"الســــــــــــــــؤال"]
[null,null,"الباب","التعيين","الفرع","الباب",null,null,null,null,null,null,null,null,null,null,null,"المـــــــــــــــــادة"]
[null,null,1,"إعانة التسيير للتغذية ",1,6,null,null,null,null,null,null,null,null,null,null,null,1]
[null,null,null,"إعانة التسيير للمصالح المشتركة",1,1,2,3,4,5,7,8,10,12,13,14,15,"كل مواد الابواب المذكورة"]
[null,null,null,"إعانات التسيير الإضافية المختلفة","حسب تخصيصها"]
[null,null,null,"إعانات تسيير أقسام رياضة ودراسة",2,1,null,null,null,null,null,null,null,null,null,null,null,1,"  كيف تفصل فواتير التغذية ؟"]
[null,null,null,"المنح (منح النظامين الداخلي ونصف الداخلي)",1,6,null,null,null,null,null,null,null,null,null,null,null,1]
[null,null,null,"منح التجهيز",3,2,null,null,null,null,null,null,null,null,null,null,null,1]
[null,null,null,"دعم الدولة للتلاميذ الممنوحين",1,6,null,null,null,null,null,null,null,null,null,null,null,1]
[null,null,null,"إعانات تسيير وحدة الكشف والمتابعة ",1,11,null,null,null,null,null,null,null,null,null,null,null,1]
[null,null,null,"إعانات النشاط الثقافي والرياضي",1,13,null,null,null,null,null,null,null,null,null,null,null,"كل مواد الباب"]
[null,null,null,"إعانات دعم المكتبات المدرسية ",1,12,null,null,null,null,null,null,null,null,null,null,null,1]
[null,null,2,"إعانات الإصلاحات الكبرى",1,14,null,null,null,null,null,null,null,null,null,null,null,1]
[null,null,null,"إعانات المؤسسات والهيئات العمومية","حسب تخصيصها"]
[null,null,null,"إعانات تنظيم مراكز التجميع والتصحيح للامتحانات المدرسية السنوية","؟","؟","؟","؟","؟","؟","؟","؟","؟","؟","؟","؟","؟","؟","من أي باب ومادة تصرف؟"]
[null,null,null,"إعانات إخرى على عاتق الولاية ","حسب تخصيصها"]
[null,null,3,"الهبات والوصايا ","حسب تخصيصها وبناء على خصوصية كل مؤسسة  وقرار مجلس التوجية والتسيير او التربية والتسيير"]
[null,null,4,"عائدات الايجار",1,1,2,3,4,5,7,8,10,12,13,14,15,"كل مواد الابواب المذكورة"]
[null,null,null,"ايرادات الأعباء الملحقة (كهرباء - غاز - ماء )",1,1,2,3,4,5,7,8,10,12,13,14,15,"كل مواد الابواب المذكورة"]
[null,null,null,"مستحقات المبيت",1,1,2,3,4,5,7,8,10,12,13,14,15,"كل مواد الابواب المذكورة"]
[null,null,null,"ايرادات بيع بقايا الخبز والشحوم والخردوات",1,1,2,3,4,5,7,8,10,12,13,14,15,"كل مواد الابواب المذكورة"]
[null,null,null,"الإتلافات",1,1,2,3,4,5,7,8,10,12,13,14,15,"كل مواد الابواب المذكورة"]
[null,null,null,"الايرادات الناتجة عن عملية الإسقاط",1,1,2,3,4,5,7,8,10,12,13,14,15,"كل مواد الابواب المذكورة"]
[null,null,null,"ايرادات بيع أشياء مصنوعة ومنتوج الحدائق",1,1,2,3,4,5,7,8,10,12,13,14,15,"كل مواد الابواب المذكورة"]
[null,null,null,"ايرادات بيع الكتاب المدرسي",3,3,null,null,null,null,null,null,null,null,null,null,null,2]
[null,null,null,"ايرادات شبه المدرسية (الدفتر الصحي ، دفتر المراسلة ، أوراق الامتحانات )",3,3,null,null,null,null,null,null,null,null,null,null,null,2]
[null,null,null,"كل ايراد آخر مرتبط بالنشاط العادي للمؤسسة ",1,1,2,3,4,5,7,8,10,12,13,14,15,"كل مواد الابواب المذكورة"]
[null,null,5,"تحصيل الدفع غير المستحق"]
[null,null,null,"تعويضات التأمينات وتعويضات أخرى","يمكن أن يوزع على أبواب التسيير عند التعديل"]
[null,null,null,"الباقي للتحصيل للسنوات السابقة"]
[null,null,null,"تصفية الحسابات خارج الميزانية"]
[null,null,null,"تعويض العجز في الميزانية"]
[null,null,6,"حقوق التسجيل (مصاريف المراسلة)",1,1,2,3,4,5,7,8,10,12,13,14,15,"كل مواد الابواب المذكورة"]
[null,null,7,"مساهمة عائلات التلاميذ غير الممنوحين في التغذية ",1,6,null,null,null,null,null,null,null,null,null,null,null,1]
[null,null,null,"ايرادات ناتجة عن إطعام مستخدمي التربية (الطاولة المشتركة / الملتقيات )",1,6,null,null,null,null,null,null,null,null,null,null,null,2,"  كيف تفصل الفواتير ؟"]
[null,null,null,"ايرادات ناتجة عن إطعام المدعوين وآخرون ",1,6,null,null,null,null,null,null,null,null,null,null,null,3,"تصلح في حالة عدم وجود التلاميذ يومها "]
[null,null,8,"إعتمادات المنحة المدرسية الخاصة لفائدة التلاميذ المعوزيتن",3,1,null,null,null,null,null,null,null,null,null,null,null,1]
[null,null,9,"الاعتمادات المخصصة لتغطية تكاليف مجانية الكتاب المدرسي ",3,3,null,null,null,null,null,null,null,null,null,null,null,1]
[null,null,10,"الاعتمادات الخاصة بالتلاميذ الصحراويين ",3,4,null,null,null,null,null,null,null,null,null,null,null,"كل مواد الباب"]
[null,null,11,"تغطية العمليات التكوينية  ونفقات الامتحانات والمسابقات المهنية",1,9,null,null,null,null,null,null,null,null,null,null,null,"3/2/1"]
[null,null,12,"التكوين أثناء الخدمة لمعلمي الإبتدائي",1,9,null,null,null,null,null,null,null,null,null,null,null,4]

{"sheet":"الخلاصة","index":22,"n_rows":68,"n_cols":17,"rows_kept":68,"cut":false,"hidden":true,"merged":[[63,11,64,11],[5,11,6,11],[2,2,3,11],[66,10,66,11],[31,11,43,11],[46,11,57,11],[58,2,58,3],[58,5,58,9],[63,4,64,4],[63,10,64,10],[31,4,43,4],[27,4,28,4],[46,4,57,4],[7,11,25,11],[29,2,29,3],[29,5,29,9],[27,11,28,11],[44,2,44,3],[44,5,44,9],[27,2,28,2],[5,2,5,4],[5,5,5,10],[7,4,25,4],[26,2,26,3],[26,5,26,9],[7,5,23,5],[7,2,25,2],[28,5,28,9],[30,5,30,9],[7,3,25,3],[27,3,28,3],[46,2,57,2],[46,3,57,3],[46,5,57,5],[45,5,45,9],[31,3,43,3],[31,2,43,2],[31,5,42,5]]}
[]
[null,null,null,null,"المعطيات"]
[null,null,"توزيع مجمل الايرادات على مختلف الأبواب",null,null,null,null,null,null,null,null,null,null,null,null,"المعطيات"]
[]
[]
[null,null,"الايرادات",null,null,"النفقات",null,null,null,null,null,"الفرق"]
[null,null,"الباب","التعيين","مبلغ الايراد","الفرع","الباب",null,null,"التعيين","مبلغ النفقة"]
[null,null,1,"إعانات التسيير الممنوحة من طرف الدولة",{"$f":"الايرادات!J8","v":9456192},1,1,null,null,"تسديد المصاريف",{"$f":"النفقات!J8","v":20000},{"$f":"L27","v":-115305},null,null,null,null,{"$f":"#REF!","v":{"$error":"#REF!"}}]
[null,null,null,null,null,null,2,null,null,"التكاليف الملحقة",{"$f":"النفقات!J13","v":450000},null,null,null,null,null,{"$f":"#REF!","v":{"$error":"#REF!"}}]
[null,null,null,null,null,null,3,null,null,"للوازم",{"$f":"النفقات!J22","v":75000},null,null,null,null,null,{"$f":"#REF!","v":{"$error":"#REF!"}}]
[null,null,null,null,null,null,4,null,null,"الأدوات والأثاث",{"$f":"النفقات!J31","v":59000},null,null,null,null,null,{"$f":"#REF!","v":{"$error":"#REF!"}}]
[null,null,null,null,null,null,5,null,null,"اللوازم البيداغوجية",{"$f":"النفقات!J39","v":156000},null,null,null,null,null,{"$f":"#REF!","v":{"$error":"#REF!"}}]
[null,null,null,null,null,null,6,null,null,"الإطعام",{"$f":"'9'!M38","v":8384800}]
[null,null,null,null,null,null,null,{"$f":"الايرادات!J11","v":7068600},{"$f":"معطيات!J49","v":0},"اعانة الدولة"]
[null,null,null,null,null,null,null,{"$f":"الايرادات!J15","v":456192},{"$f":"معطيات!J51","v":456192},"المنح المدرسية"]
[null,null,null,null,null,null,null,{"$f":"الايرادات!J17","v":798336},{"$f":"معطيات!J53","v":798336},"مساهمة الدولة"]
[null,null,null,null,null,null,7,null,null,"الألبسة",{"$f":"النفقات!J59","v":17000},null,null,null,null,null,{"$f":"#REF!","v":{"$error":"#REF!"}}]
[null,null,null,null,null,null,8,null,null,"التأمين",null,null,null,null,null,null,{"$f":"#REF!","v":{"$error":"#REF!"}}]
[null,null,null,null,null,null,10,null,null,"حظيرة السيارات",null,null,null,null,null,null,{"$f":"#REF!","v":{"$error":"#REF!"}}]
[null,null,null,null,null,null,11,null,null,"نفقات تسيير وحدة الكشف والمتابعة (UDS)",{"$f":"النفقات!J85","v":148000}]
[null,null,null,null,null,null,12,null,null,"المكتبة المدرسية",{"$f":"النفقات!J89","v":50600},null,null,null,null,null,{"$f":"#REF!","v":{"$error":"#REF!"}}]
[null,null,null,null,null,null,13,null,null,"النفقات المتعلقة بالنشاط الثقافي والرياضي",{"$f":"النفقات!J96+النفقات!J97","v":98100},null,null,null,null,null,{"$f":"#REF!","v":{"$error":"#REF!"}}]
[null,null,null,null,null,null,14,null,null,"صيانة وتصليح المباني البيداغوجية والإدارية",{"$f":"النفقات!J100","v":112997}]
[null,null,null,null,null,null,15,null,null,"المصاريف القضائية والتعويضات المستحقة على عاتق الدولة",null,null,null,null,null,null,{"$f":"#REF!","v":{"$error":"#REF!"}}]
[null,null,null,null,null,2,1,null,null,"نفقات تسيير أقسام رياضة ودراسة",{"$f":"'3'!J9","v":0},null,null,null,null,null,{"$f":"#REF!","v":{"$error":"#REF!"}}]
[null,null,null,null,null,3,2,null,null,"المنح المدرسية",{"$f":"'3'!J21","v":0},null,null,null,null,null,{"$f":"#REF!","v":{"$error":"#REF!"}}]
[null,null,"المجموع",null,{"$f":"E8","v":9456192},"المجموع",null,null,null,null,{"$f":"SUM(K8:K26)","v":9571497},{"$f":"E27-K27","v":-115305}]
[null,null,2,"الإعانات الممنوحة من الجماعات المحلية والمؤسسات والهيئات العمومية",{"$f":"الايرادات!J23","v":0},1,14,null,null,"صيانة وتصليح المباني البيداغوجية والإدارية",0,{"$f":"L30","v":0},null,null,null,null,{"$f":"#REF!","v":{"$error":"#REF!"}}]
[null,null,null,null,null,"حسب التخصيص",null,null,null,null,null,null,null,null,null,null,{"$f":"#REF!","v":{"$error":"#REF!"}}]
[null,null,"المجموع",null,{"$f":"E28","v":0},"المجموع",null,null,null,null,{"$f":"K28+K29","v":0},{"$f":"E30-K30","v":0}]
[null,null,3,"الهبات والوصايا",{"$f":"الايرادات!J38","v":0},"حسب التخصيص وخصوصية كل مؤسسة وبعد قرار مجلس التربية والتسيير ",null,null,null,null,{"$f":"E31","v":0},{"$f":"E31-K31","v":0},null,null,null,null,{"$f":"#REF!","v":{"$error":"#REF!"}}]
[null,null,4,"إيرادات مرتبطة بنشاط المؤسسة",{"$f":"الايرادات!J44","v":46933},1,1,null,null,"تسديد المصاريف",{"$f":"'2'!J11-K8","v":0},{"$f":"L45","v":46933},null,null,null,null,{"$f":"#REF!","v":{"$error":"#REF!"}}]
[null,null,null,null,null,null,2,null,null,"التكاليف الملحقة",null,null,null,null,null,null,{"$f":"#REF!","v":{"$error":"#REF!"}}]
[null,null,null,null,null,null,3,null,null,"للوازم",{"$f":"'2'!J15-K10","v":0}]
[null,null,null,null,null,null,4,null,null,"الأدوات والأثاث",{"$f":"'2'!J17-K11","v":0},null,null,null,null,null,{"$f":"#REF!","v":{"$error":"#REF!"}}]
[null,null,null,null,null,null,5,null,null,"اللوازم البيداغوجية",{"$f":"'2'!J19-K12","v":0},null,null,null,null,null,{"$f":"#REF!","v":{"$error":"#REF!"}}]
[null,null,null,null,null,null,7,null,null,"الألبسة",{"$f":"'2'!J23-K17","v":0}]
[null,null,null,null,null,null,8,null,null,"التأمين",{"$f":"'2'!J25-K18","v":0},null,null,null,null,null,{"$f":"#REF!","v":{"$error":"#REF!"}}]
[null,null,null,null,null,null,10,null,null,"حظيرة السيارات",{"$f":"'2'!J29-K19","v":0},null,null,null,null,null,{"$f":"#REF!","v":{"$error":"#REF!"}}]
[null,null,null,null,null,null,12,null,null,"المكتبة المدرسية",null,null,null,null,null,null,{"$f":"#REF!","v":{"$error":"#REF!"}}]
[null,null,null,null,null,null,13,null,null,"النفقات المتعلقة بالنشاط الثقافي والرياضي",0]
[null,null,null,null,null,null,14,null,null,"صيانة وتصليح المباني البيداغوجية والإدارية",{"$f":"'2'!J37-الايرادات!J23-K23","v":0}]
[null,null,null,null,null,null,15,null,null,"المصاريف القضائية والتعويضات المستحقة على عاتق الدولة",0]
[null,null,null,null,null,3,3,null,null,"نفقات الكتاب المدرسي / المادة 02",{"$f":"'12'!M40","v":0},null,null,null,null,null,{"$f":"#REF!","v":{"$error":"#REF!"}}]
[null,null,"المجموع",null,{"$f":"E32","v":46933},"المجموع",null,null,null,null,{"$f":"SUM(K32:K44)","v":0},{"$f":"E45-K45","v":46933}]
[null,null,5,"إيرادات مختلفة",{"$f":"الايرادات!J63","v":0},"لا توزع  إلا بترخيص لإدراج فائض الايرادات ",null,null,null,null,null,{"$f":"E46-K46","v":0},null,null,null,null,{"$f":"#REF!","v":{"$error":"#REF!"}}]
[null,null,6,"إيرادات ناتجة عن تسديد حقوق التسجيل",{"$f":"الايرادات!J73","v":6700},1,1,null,null,"تسديد المصاريف",{"$f":"'2'!J11-K8-K32","v":0},null,null,null,null,null,{"$f":"#REF!","v":{"$error":"#REF!"}}]
[null,null,null,null,null,null,2,null,null,"التكاليف الملحقة",{"$f":"'2'!J13-K9-K33","v":0},null,null,null,null,null,{"$f":"#REF!","v":{"$error":"#REF!"}}]
[null,null,null,null,null,null,3,null,null,"للوازم",{"$f":"'2'!J15-K10-K34","v":0},null,null,null,null,null,{"$f":"#REF!","v":{"$error":"#REF!"}}]
[null,null,null,null,null,null,4,null,null,"الأدوات والأثاث",{"$f":"'2'!J17-K11-K35","v":0},null,null,null,null,null,{"$f":"#REF!","v":{"$error":"#REF!"}}]
[null,null,null,null,null,null,5,null,null,"اللوازم البيداغوجية",{"$f":"'2'!J19-K12-K36","v":0},null,null,null,null,null,{"$f":"#REF!","v":{"$error":"#REF!"}}]
[null,null,null,null,null,null,7,null,null,"الألبسة",{"$f":"'2'!J23-K17-K37","v":0},null,null,null,null,null,{"$f":"#REF!","v":{"$error":"#REF!"}}]
[null,null,null,null,null,null,8,null,null,"التأمين",{"$f":"'2'!J25-K18-K38","v":0},null,null,null,null,null,{"$f":"#REF!","v":{"$error":"#REF!"}}]
[null,null,null,null,null,null,10,null,null,"حظيرة السيارات",{"$f":"'2'!J29-K19-K39","v":0},null,null,null,null,null,{"$f":"#REF!","v":{"$error":"#REF!"}}]
[null,null,null,null,null,null,12,null,null,"المكتبة المدرسية",0,null,null,null,null,null,{"$f":"#REF!","v":{"$error":"#REF!"}}]
[null,null,null,null,null,null,13,null,null,"النفقات المتعلقة بالنشاط الثقافي والرياضي",0,null,null,null,null,null,{"$f":"#REF!","v":{"$error":"#REF!"}}]
[null,null,null,null,null,null,14,null,null,"صيانة وتصليح المباني البيداغوجية والإدارية",0]
[null,null,null,null,null,null,15,null,null,"المصاريف القضائية والتعويضات المستحقة على عاتق الدولة",0,null,null,null,null,null,{"$f":"#REF!","v":{"$error":"#REF!"}}]
[null,null,"المجموع",null,{"$f":"E47","v":6700},"المجموع",null,null,null,null,{"$f":"SUM(K47:K58)","v":0},{"$f":"E59-K59","v":6700}]
[null,null,7,"إيرادات الإطعام",{"$f":"الايرادات!J79","v":70800},1,6,null,null,"الإطعام",null,{"$f":"E60-K60","v":70800},null,null,null,null,{"$f":"#REF!","v":{"$error":"#REF!"}}]
[null,null,8,"المنحة المدرسية الخاصة لفائدة التلاميذ المعوزيتن",{"$f":"الايرادات!J87","v":0},3,1,null,null,"منحة التمدرس الخاصة لفائدة التلاميذ المعوزين",0,{"$f":"E61-K61","v":0},null,null,null,null,{"$f":"#REF!","v":{"$error":"#REF!"}}]
[null,null,9,"مساهمة الدولة في مجانية الكتاب المدرسي لفائدة التلاميذ المعوزين",{"$f":"الايرادات!J93","v":0},3,3,null,null,"تعويض النفقات المرتبطة بمجانية الكتاب المدرسي ",{"$f":"'12'!M38","v":0},0,null,null,null,null,{"$f":"#REF!","v":{"$error":"#REF!"}}]
[null,null,10,"ايرادات واردة من الباب 42-12 المادة 01 - التلاميذ الصحراويين -",{"$f":"الايرادات!J99","v":0},3,4,null,null,"نفقات النشاط التربوي الاستثنائي",{"$f":"'12'!M49","v":0},0,null,null,null,null,{"$f":"#REF!","v":{"$error":"#REF!"}}]
[null,null,11,"ايرادات واردة من الباب 43-03   تغطية العمليات التكوينية  ونفقات الامتحانات والمسابقات المهنية",{"$f":"الايرادات!J105+الايرادات!J112","v":12375},1,9,null,null,"نفقات التكوين",{"$f":"'9'!M59","v":12375},{"$f":"E64-K64","v":0},null,null,null,null,{"$f":"#REF!","v":{"$error":"#REF!"}}]
[null,null,12,"ايرادات واردة من الباب 43-60  التكوين أثناء الخدمة لمعلمي الإبتدائي",null,1,9,null,null,"نفقات التكوين",null,null,null,null,null,null,{"$f":"#REF!","v":{"$error":"#REF!"}}]
[null,null,null,null,null,null,null,null,null,{"$f":"النفقات!C133","v":9583872},{"$f":"K27+K31+K45+K46+K59+K60+K61+K62+K63+K64","v":9583872},{"$f":"J66-K66","v":0}]
[null,null,null,null,{"$f":"E27+E31+E45+E46+E59+E60+E61+E62+E63+E64","v":9593000},null,null,null,null,"فائض الايرادات:",{"$f":"L64+L63+L62+L61+L60+L59+L47+L46+L32+L28+L8","v":9128}]
[null,null,null,null,null,null,null,null,{"$f":"'13'!H33","v":9128},{"$f":"K67-I68","v":0}]

{"sheet":"فائض الايرادات","index":23,"n_rows":20,"n_cols":10,"rows_kept":20,"cut":false,"hidden":true,"merged":[[1,2,2,6],[17,2,17,3],[15,5,16,5],[15,6,16,6],[15,4,16,4]]}
[]
[null,null,"فائض الايرادات المسجل",null,null,null,null,null,"المعطيات"]
[]
[]
[null,null,"الباب","التعيين","الايرادات","النفقات","فائض الايرادات"]
[null,null,1,"إعانات التسيير الممنوحة من طرف الدولة",{"$f":"الايرادات!J8","v":9456192},{"$f":"الخلاصة!K27","v":9571497},{"$f":"E6-F6","v":-115305},null,null,{"$f":"#REF!","v":{"$error":"#REF!"}}]
[null,null,2,"الإعانات الممنوحة من الجماعات المحلية والمؤسسات والهيئات العمومية",{"$f":"الايرادات!J23","v":0},{"$f":"SUM(الخلاصة!K28:K29)","v":0},{"$f":"E7-F7","v":0},null,null,{"$f":"#REF!","v":{"$error":"#REF!"}}]
[null,null,3,"الهبات والوصايا",{"$f":"الايرادات!J38","v":0},{"$f":"الخلاصة!K31","v":0},{"$f":"E8-F8","v":0},null,null,{"$f":"#REF!","v":{"$error":"#REF!"}}]
[null,null,4,"إيرادات مرتبطة بنشاط المؤسسة",{"$f":"الايرادات!J44","v":46933},{"$f":"SUM(الخلاصة!K32:K44)","v":0},46933,null,null,{"$f":"#REF!","v":{"$error":"#REF!"}}]
[null,null,5,"إيرادات مختلفة",{"$f":"الايرادات!J63","v":0},{"$f":"SUM(الخلاصة!K46)","v":0},0,null,null,{"$f":"#REF!","v":{"$error":"#REF!"}}]
[null,null,6,"إيرادات ناتجة عن تسديد حقوق التسجيل",{"$f":"الايرادات!J73","v":6700},{"$f":"SUM(الخلاصة!K47:K58)","v":0},6700,null,null,{"$f":"#REF!","v":{"$error":"#REF!"}}]
[null,null,7,"إيرادات الإطعام",{"$f":"الايرادات!J79","v":70800},{"$f":"SUM(الخلاصة!K60)","v":0},70800,null,null,{"$f":"#REF!","v":{"$error":"#REF!"}}]
[null,null,8,"المنحة المدرسية الخاصة لفائدة التلاميذ المعوزيتن",{"$f":"الايرادات!J87","v":0},{"$f":"الخلاصة!K61","v":0},0,null,null,{"$f":"#REF!","v":{"$error":"#REF!"}}]
[null,null,9,"مساهمة الدولة في مجانية الكتاب المدرسي لفائدة التلاميذ المعوزين",{"$f":"الايرادات!J93","v":0},{"$f":"الخلاصة!K62","v":0},0,null,null,{"$f":"#REF!","v":{"$error":"#REF!"}}]
[null,null,10,"ايرادات واردة من الباب 42-12 المادة 01 - التلاميذ الصحراويين -",{"$f":"الايرادات!J99","v":0},{"$f":"الخلاصة!K63","v":0},0,null,null,{"$f":"#REF!","v":{"$error":"#REF!"}}]
[null,null,11,"ايرادات واردة من الباب 43-03   تغطية العمليات التكوينية  ونفقات الامتحانات والمسابقات المهنية",{"$f":"الايرادات!J105+الايرادات!J112","v":12375},{"$f":"الخلاصة!K64","v":12375},{"$f":"E16-F16","v":0},null,null,{"$f":"#REF!","v":{"$error":"#REF!"}}]
[null,null,12,"ايرادات واردة من الباب 43-60  التكوين أثناء الخدمة لمعلمي الإبتدائي",null,null,null,null,null,{"$f":"#REF!","v":{"$error":"#REF!"}}]
[null,null,"المجموع :   ",null,{"$f":"SUM(E6:E17)","v":9593000},{"$f":"SUM(F6:F17)","v":9583872},{"$f":"SUM(G6:G17)","v":9128}]
[]
[null,null,null,null,null,null,null,{"$f":"F20-G20","v":0}]